Workbook

Sheet CurveDevelopment
K2: Tollway Testing Form (TTF) 010
D3: Illinois Tollway | K3: 12/01/2020
D4: Concrete Maturity - Strength Development
D5: Using Compressive Strength
J6: Report Date: | AA6: Y | AB6: Cone
B7: Project No.: | F7: Tester: | J7: Casting Date: | AA7: N | AB7: Cone/Split
B8: Location: | F8: Contractor: | J8: Casting Time: | AB8: Cone/Shear
B9: Curve #: | F9: Engineer: | J9: Opening Strength, psi | AB9: Shear
AB10: Columnar
B11: Beam No. | C11: Age at Break (hours or days) | D11: Ave. Diameter "D" (in) | E11: Ave. Length "L" (in) | F11: Total Test Load (lbs) | G11: Failure Type | H11: Compressive Strength (psi) | I11: T-TF Sensor 1 (F-Hours) | J11: T-TF Sensor 2 (F-Hours) | K11: Ave. T-TF (F-Hours) | N11: Age | O11: Average TTF | P11: Average strength | R11: ln(TTF)
B12: 1 | H12: =IF(F12="","",MROUND(F12/((D12/2)^2*PI()),5)) ->  | N12: =C12 -> 0 | O12: =AVERAGE(K13:K14) ->  | P12: =AVERAGE(H12:H14) ->  | R12: =LN(O12) -> 
B13: 2 | H13: =IF(F13="","",MROUND(F13/((D13/2)^2*PI()),5)) ->  | K13: =IF(I12="","",MROUND(AVERAGE(I12:J12),5)) ->  | N13: =C15 -> 0 | O13: =AVERAGE(K16:K17) ->  | P13: =AVERAGE(H15:H17) ->  | R13: =LN(O13) ->  | Z13: Solver | AH13: Maturity | AI13: Strength
B14: 3 | N14: =C18 -> 0 | O14: =AVERAGE(K19:K20) ->  | P14: =AVERAGE(H18:H20) ->  | R14: =LN(O14) ->  | Z14: Maturity | AA14: Compressive Strength | AB14: Calculated Strength | AC14: (calc-meas)^2 | AD14: (calc-ave)^2 | AE14: (meas-ave)^2 | AH14: 1 | AI14: =$AA$35*EXP(-(($AA$36/AH14)^$AA$37)) -> 1.923057017e-24
B15: 4 | H15: =IF(F15="","",MROUND(F15/((D15/2)^2*PI()),5)) ->  | N15: =C21 -> 0 | O15: =AVERAGE(K22:K23) ->  | P15: =AVERAGE(H21:H23) ->  | R15: =LN(O15) ->  | Z15: =K13 ->  | AA15: =IF(H12<>"",H12,"x") -> x | AB15: =IF(AA15<>"",$AA$35*EXP(-(($AA$36/Z15)^$AA$37)),NA()) ->  | AC15: =(AB15-AA15)^2 ->  | AD15: =(AB15-$AA$31)^2 ->  | AE15: =(AA15-$AA$31)^2 ->  | AH15: 100 | AI15: =$AA$35*EXP(-(($AA$36/AH15)^$AA$37)) -> 6.648007168
B16: 5 | K16: =IF(I15="","",MROUND(AVERAGE(I15:J15),5)) ->  | N16: =C24 -> 0 | O16: =AVERAGE(K25:K26) ->  | P16: =AVERAGE(H24:H26) ->  | R16: =LN(O16) ->  | Z16: =K13 ->  | AA16: x | AB16: =IF(AA16<>"",$AA$35*EXP(-(($AA$36/Z16)^$AA$37)),NA()) ->  | AC16: =(AB16-AA16)^2 ->  | AD16: =(AB16-$AA$31)^2 ->  | AE16: =(AA16-$AA$31)^2 ->  | AH16: 200 | AI16: 52.10740656
B17: 6 | Z17: =K13 ->  | AA17: x | AH17: 300 | AI17: 131.9707834
B18: 7 | P18: linest | Q18: =LINEST(P12:P16,R12:R16,TRUE,FALSE) ->  | Z18: =K16 ->  | AA18: x | AH18: 400 | AI18: 231.1304888
B19: 8 | K19: =IF(I18="","",MROUND(AVERAGE(I18:J18),5)) ->  | Q19: ="f'c = " & ROUND(Q18,1) & " * ln(TTF) + " & ROUND(R18,1) ->  | Z19: =K16 ->  | AA19: x | AH19: 500 | AI19: 339.909487
B20: 9 | Z20: =K16 ->  | AA20: x | AH20: 600 | AI20: 452.7363858
B21: 10 | Z21: =K19 ->  | AA21: x | AH21: 700 | AI21: 566.4136177
B22: 11 | K22: =IF(I21="","",MROUND(AVERAGE(I21:J21),5)) ->  | Z22: =K19 ->  | AA22: x | AH22: 800 | AI22: 679.0941129
B23: 12 | Z23: =K19 ->  | AA23: x | AH23: 900 | AI23: 789.7145431
B24: 13 | Z24: =K22 ->  | AA24: x | AH24: 1000 | AI24: 897.6773644
B25: 14 | K25: =IF(I24="","",MROUND(AVERAGE(I24:J24),5)) ->  | Z25: =K22 ->  | AA25: x | AH25: 1100 | AI25: 1002.667488
B26: 15 | Z26: =K22 ->  | AA26: x | AH26: 1200 | AI26: 1104.543559
Z27: =K25 ->  | AA27: x | AH27: 1300 | AI27: 1203.271837
Z28: =K25 ->  | AA28: x | AH28: 1400 | AI28: 1298.885111
Z29: =K25 ->  | AA29: x | AH29: 1500 | AI29: 1391.456741
AC30: 0 | AH30: 1600 | AI30: 1481.084025
AA31: =AVERAGE(AA15:AA29) ->  | AC31: =SUMIFS(AC15:AC29,AA15:AA29,"<>x") -> 0 | AD31: =SUMIFS(AD15:AD29,AA15:AA29,"<>x") -> 0 | AE31: =SUMIFS(AE15:AE29,AA15:AA29,"<>x") -> 0 | AH31: 1700 | AI31: 1567.877456
AH32: 1800 | AI32: 1651.95376
AH33: 1900 | AI33: 1733.431374
Z34: 0 | AA34: 0 | AD34: R2 | AE34: =1-AC31/AE31 ->  | AH34: 2000 | AI34: 1812.427555
Z35: Su | AA35: 11394.48147 | AH35: 2100 | AI35: 1889.056551
Z36: t | AA36: 7368.654987 | AH36: 2200 | AI36: 1963.428488
Z37: a | AA37: 0.4669388552 | AH37: 2300 | AI37: 2035.648743
AH38: 2400 | AI38: 2105.817631
AA39: =AA36*(LN(AA35/E48))^(-1/AA37) ->  | AH39: 2500 | AI39: 2174.030311
AH40: 2600 | AI40: 2240.376824
AH41: 2700 | AI41: 2304.942231
AH42: 2800 | AI42: 2367.8068
AH43: 2900 | AI43: 2429.046229
AH44: 3000 | AI44: 2488.731886
AH45: 3500 | AI45: 2766.078782
H46: Su= | I46: =ROUND(AA35,2) -> 11394.48 | AH46: 4000 | AI46: 3013.208229
B47: Required T-TF for Opening | E47: =IF(K9="","",ROUND(AA36*(LN(AA35/K9))^(-1/AA37),-1)) ->  | F47: F-hours | H47: t= | I47: =ROUND(AA36,2) -> 7368.65 | AH47: 4500 | AI47: 3235.500299
H48: a= | I48: =ROUND(AA37,3) -> 0.467 | AH48: 5000 | AI48: 3437.075469
AH49: 5500 | AI49: 3621.143722
B50: Comments: | AH50: 6000 | AI50: 3790.246568
AH51: 6500 | AI51: 3946.426279
AH52: 7000 | AI52: 4091.346018
B53: Mix Information | AH53: 7500 | AI53: 4226.37654
B54: Mix No. | G54: Certified Contractor Rep: | AH54: 8000 | AI54: 4352.659837
B55: Truck No. | AH55: 8500 | AI55: 4471.156568
B56: Air, % | AH56: 9000 | AI56: 4582.681961
B57: Slump, in. | G57: Maturity Curve Reviewed by: | AH57: 9500 | AI57: 4687.933327
B58: W/C Ratio | AH58: 10000 | AI58: 4787.511436
AH59: 10500 | AI59: 4881.937297
AH60: 11000 | AI60: 4971.665482
AH61: 11500 | AI61: 5057.0948
AH62: 12000 | AI62: 5138.576928
AH63: 12500 | AI63: 5216.423454
AH64: 13000 | AI64: 5290.911653
AH65: 13500 | AI65: 5362.289279
AH66: 14000 | AI66: 5430.778545
AH67: 14500 | AI67: 5496.579468
AH68: 15000 | AI68: 5559.872684
AH69: 15500 | AI69: 5620.821835
AH70: 16000 | AI70: 5679.575603
AH71: 16500 | AI71: 5736.269451
AH72: 17000 | AI72: 5791.027121
AH73: 17500 | AI73: 5843.961925
AH74: 18000 | AI74: 5895.177867
AH75: 18500 | AI75: 5944.770619
AH76: 19000 | AI76: 5992.828373
AH77: 19500 | AI77: 6039.432587
AH78: 20000 | AI78: 6084.658644
AH79: 20500 | AI79: =$AA$35*EXP(-(($AA$36/AH79)^$AA$37)) -> 6128.576428
AH80: 21000 | AI80: 6171.250841
AH81: 21500 | AI81: 6212.742254
AH82: 22000 | AI82: 6253.106913
AH83: 22500 | AI83: 6292.3973
AH84: 23000 | AI84: 6330.662456
AH85: 23500 | AI85: 6367.948268
AH86: 24000 | AI86: 6404.297732
AH87: 24500 | AI87: 6439.751183
AH88: 25000 | AI88: 6474.346509
T98: 5.75 | V98: =T98+0.01 -> 5.76 | W98: =V98+0.01 -> 5.77 | X98: =W98+0.01 -> 5.78 | Y98: 5.79 | Z98: 5.8 | AA98: 5.81 | AB98: 5.82 | AC98: 5.83 | AD98: 5.84 | AE98: 5.85 | AF98: 5.86 | AG98: 5.87 | AJ98: =AI99+0.01 -> 5.9 | AK98: 5.91 | AL98: 5.92 | AM98: 5.93 | AN98: 5.94 | AO98: 5.95 | AP98: 5.96 | AQ98: 5.97 | AR98: 5.98 | AS98: 5.99 | AT98: 6 | AU98: 6.01 | AV98: 6.02 | AW98: 6.03 | AX98: 6.04 | AY98: 6.05 | AZ98: 6.06 | BA98: 6.07 | BB98: 6.08 | BC98: =BB98+0.01 -> 6.09 | BD98: 6.1 | BE98: 6.11 | BF98: 6.12 | BG98: 6.13 | BH98: 6.14 | BI98: 6.15 | BJ98: 6.16 | BK98: 6.17 | BL98: =BK98+0.01 -> 6.18 | BM98: 6.19 | BN98: 6.2 | BO98: 6.21 | BP98: 6.22 | BQ98: 6.23 | BR98: 6.24 | BS98: =BR98+0.01 -> 6.25
S99: 5.75 | T99: =V99+(0.047/25) -> 1.136 | V99: =W99+(0.047/25) -> 1.13412 | W99: 1.13224 | X99: 1.13036 | Y99: 1.12848 | Z99: 1.1266 | AA99: 1.12472 | AB99: 1.12284 | AC99: 1.12096 | AD99: 1.11908 | AE99: 1.1172 | AF99: 1.11532 | AG99: =AH100+(0.047/25) -> 1.11344 | AH99: =AG98+0.01 -> 5.88 | AI99: 5.89 | AJ99: 1.1078 | AK99: 1.10592 | AL99: 1.10404 | AM99: 1.10216 | AN99: 1.10028 | AO99: 1.0984 | AP99: 1.09652 | AQ99: 1.09464 | AR99: 1.09276 | AS99: =AT99+(0.047/25) -> 1.09088 | AT99: =AT100+(0.089/25) -> 1.089 | AU99: =AT99-(0.044/25) -> 1.08724 | AV99: =AU99-(0.044/25) -> 1.08548 | AW99: 1.08372 | AX99: 1.08196 | AY99: 1.0802 | AZ99: 1.07844 | BA99: 1.07668 | BB99: 1.07492 | BC99: 1.07316 | BD99: 1.0714 | BE99: 1.06964 | BF99: 1.06788 | BG99: 1.06612 | BH99: 1.06436 | BI99: 1.0626 | BJ99: 1.06084 | BK99: 1.05908 | BL99: 1.05732 | BM99: 1.05556 | BN99: 1.0538 | BO99: 1.05204 | BP99: 1.05028 | BQ99: 1.04852 | BR99: 1.04676 | BS99: 1.045
S100: =S99+0.01 -> 5.76 | T100: =T99-(($T$99-$T$124)/25) -> 1.13228 | V100: =V99-(($V$99-$V$124)/25) -> 1.1304064 | W100: =W99-(($W$99-$W$124)/25) -> 1.1285328 | X100: =X99-(($X$99-$X$124)/25) -> 1.1266592 | Y100: =Y99-(($Y$99-$Y$124)/25) -> 1.1247856 | Z100: =Z99-(($Z$99-$Z$124)/25) -> 1.122912 | AA100: =AA99-(($AA$99-$AA$124)/25) -> 1.1210384 | AB100: =AB99-(($AB$99-$AB$124)/25) -> 1.1191648 | AC100: =AC99-(($AC$99-$AC$124)/25) -> 1.1172912 | AD100: =AD99-(($AD$99-$AD$124)/25) -> 1.1154176 | AE100: =AE99-(($AE$99-$AE$124)/25) -> 1.113544 | AF100: =AF99-(($AF$99-$AF$124)/25) -> 1.1116704 | AG100: =AG99-(($AG$99-$AG$124)/25) -> 1.1097968 | AH100: 1.11156 | AI100: =AJ99+(0.047/25) -> 1.10968 | AJ100: =AJ99-(($AJ$99-$AJ$124)/25) -> 1.104176 | AK100: =AK99-(($AK$99-$AK$124)/25) -> 1.1023024 | AL100: =AL99-(($AL$99-$AL$124)/25) -> 1.1004288 | AM100: =AM99-(($AM$99-$AM$124)/25) -> 1.0985552 | AN100: =AN99-(($AN$99-$AN$124)/25) -> 1.0966816 | AO100: =AO99-(($AO$99-$AO$124)/25) -> 1.094808 | AP100: =AP99-(($AP$99-$AP$124)/25) -> 1.0929344 | AQ100: =AQ99-(($AQ$99-$AQ$124)/25) -> 1.0910608 | AR100: =AR99-(($AR$99-$AR$124)/25) -> 1.0891872 | AS100: =AS99-(($AS$99-$AS$124)/25) -> 1.0873136 | AT100: 1.08544 | AU100: =AU99-(($AU$99-$AU$124)/25) -> 1.0836864 | AV100: =AV99-(($AV$99-$AV$124)/25) -> 1.0819328 | AW100: =AW99-(($AW$99-$AW$124)/25) -> 1.0801792 | AX100: =AX99-(($AX$99-$AX$124)/25) -> 1.0784256 | AY100: =AY99-(($AY$99-$AY$124)/25) -> 1.076672 | AZ100: =AZ99-(($AZ$99-$AZ$124)/25) -> 1.0749184 | BA100: =BA99-(($BA$99-$BA$124)/25) -> 1.0731648 | BB100: =BB99-(($BB$99-$BB$124)/25) -> 1.0714112 | BC100: =BC99-(($BC$99-$BC$124)/25) -> 1.0696576 | BD100: =BD99-(($BD$99-$BD$124)/25) -> 1.067904 | BE100: =BE99-(($BE$99-$BE$124)/25) -> 1.0661504 | BF100: =BF99-(($BF$99-$BF$124)/25) -> 1.0643968 | BG100: =BG99-(($BG$99-$BG$124)/25) -> 1.0626432 | BH100: =BH99-(($BH$99-$BH$124)/25) -> 1.0608896 | BI100: =BI99-(($BI$99-$BI$124)/25) -> 1.059136 | BJ100: =BJ99-(($BJ$99-$BJ$124)/25) -> 1.0573824 | BK100: =BK99-(($BK$99-$BK$124)/25) -> 1.0556288 | BL100: =BL99-(($BL$99-$BL$124)/25) -> 1.0538752 | BM100: =BM99-(($BM$99-$BM$124)/25) -> 1.0521216 | BN100: =BN99-(($BN$99-$BN$124)/25) -> 1.050368 | BO100: =BO99-(($BO$99-$BO$124)/25) -> 1.0486144 | BP100: =BP99-(($BP$99-$BP$124)/25) -> 1.0468608 | BQ100: =BQ99-(($BQ$99-$BQ$124)/25) -> 1.0451072 | BR100: =BR99-(($BR$99-$BR$124)/25) -> 1.0433536 | BS100: =BS99-(($BS$99-$BS$124)/25) -> 1.0416
S101: =S100+0.01 -> 5.77 | T101: =T100-(($T$99-$T$124)/25) -> 1.12856 | V101: =V100-(($V$99-$V$124)/25) -> 1.1266928 | W101: =W100-(($W$99-$W$124)/25) -> 1.1248256 | X101: =X100-(($X$99-$X$124)/25) -> 1.1229584 | Y101: =Y100-(($Y$99-$Y$124)/25) -> 1.1210912 | Z101: =Z100-(($Z$99-$Z$124)/25) -> 1.119224 | AA101: =AA100-(($AA$99-$AA$124)/25) -> 1.1173568 | AB101: =AB100-(($AB$99-$AB$124)/25) -> 1.1154896 | AC101: =AC100-(($AC$99-$AC$124)/25) -> 1.1136224 | AD101: =AD100-(($AD$99-$AD$124)/25) -> 1.1117552 | AE101: =AE100-(($AE$99-$AE$124)/25) -> 1.109888 | AF101: =AF100-(($AF$99-$AF$124)/25) -> 1.1080208 | AG101: =AG100-(($AG$99-$AG$124)/25) -> 1.1061536 | AH101: =AH100-(($AH$100-$AH$125)/25) -> 1.1079232 | AI101: =AI100-(($AI$100-$AI$125)/25) -> 1.1060496 | AJ101: =AJ100-(($AJ$99-$AJ$124)/25) -> 1.100552 | AK101: =AK100-(($AK$99-$AK$124)/25) -> 1.0986848 | AL101: =AL100-(($AL$99-$AL$124)/25) -> 1.0968176 | AM101: =AM100-(($AM$99-$AM$124)/25) -> 1.0949504 | AN101: =AN100-(($AN$99-$AN$124)/25) -> 1.0930832 | AO101: =AO100-(($AO$99-$AO$124)/25) -> 1.091216 | AP101: =AP100-(($AP$99-$AP$124)/25) -> 1.0893488 | AQ101: =AQ100-(($AQ$99-$AQ$124)/25) -> 1.0874816 | AR101: =AR100-(($AR$99-$AR$124)/25) -> 1.0856144 | AS101: =AS100-(($AS$99-$AS$124)/25) -> 1.0837472 | AT101: 1.08188 | AU101: =AU100-(($AU$99-$AU$124)/25) -> 1.0801328 | AV101: =AV100-(($AV$99-$AV$124)/25) -> 1.0783856 | AW101: =AW100-(($AW$99-$AW$124)/25) -> 1.0766384 | AX101: =AX100-(($AX$99-$AX$124)/25) -> 1.0748912 | AY101: =AY100-(($AY$99-$AY$124)/25) -> 1.073144 | AZ101: =AZ100-(($AZ$99-$AZ$124)/25) -> 1.0713968 | BA101: =BA100-(($BA$99-$BA$124)/25) -> 1.0696496 | BB101: =BB100-(($BB$99-$BB$124)/25) -> 1.0679024 | BC101: =BC100-(($BC$99-$BC$124)/25) -> 1.0661552 | BD101: =BD100-(($BD$99-$BD$124)/25) -> 1.064408 | BE101: =BE100-(($BE$99-$BE$124)/25) -> 1.0626608 | BF101: =BF100-(($BF$99-$BF$124)/25) -> 1.0609136 | BG101: =BG100-(($BG$99-$BG$124)/25) -> 1.0591664 | BH101: =BH100-(($BH$99-$BH$124)/25) -> 1.0574192 | BI101: =BI100-(($BI$99-$BI$124)/25) -> 1.055672 | BJ101: =BJ100-(($BJ$99-$BJ$124)/25) -> 1.0539248 | BK101: =BK100-(($BK$99-$BK$124)/25) -> 1.0521776 | BL101: =BL100-(($BL$99-$BL$124)/25) -> 1.0504304 | BM101: =BM100-(($BM$99-$BM$124)/25) -> 1.0486832 | BN101: =BN100-(($BN$99-$BN$124)/25) -> 1.046936 | BO101: =BO100-(($BO$99-$BO$124)/25) -> 1.0451888 | BP101: =BP100-(($BP$99-$BP$124)/25) -> 1.0434416 | BQ101: =BQ100-(($BQ$99-$BQ$124)/25) -> 1.0416944 | BR101: =BR100-(($BR$99-$BR$124)/25) -> 1.0399472 | BS101: =BS100-(($BS$99-$BS$124)/25) -> 1.0382
S102: 5.78 | T102: 1.12484 | V102: 1.1229792 | W102: 1.1211184 | X102: 1.1192576 | Y102: 1.1173968 | Z102: 1.115536 | AA102: 1.1136752 | AB102: 1.1118144 | AC102: 1.1099536 | AD102: 1.1080928 | AE102: 1.106232 | AF102: 1.1043712 | AG102: 1.1025104 | AH102: 1.1042864 | AI102: 1.1024192 | AJ102: 1.096928 | AK102: 1.0950672 | AL102: 1.0932064 | AM102: 1.0913456 | AN102: 1.0894848 | AO102: 1.087624 | AP102: 1.0857632 | AQ102: 1.0839024 | AR102: 1.0820416 | AS102: 1.0801808 | AT102: 1.07832 | AU102: 1.0765792 | AV102: 1.0748384 | AW102: 1.0730976 | AX102: 1.0713568 | AY102: 1.069616 | AZ102: 1.0678752 | BA102: 1.0661344 | BB102: 1.0643936 | BC102: 1.0626528 | BD102: 1.060912 | BE102: 1.0591712 | BF102: 1.0574304 | BG102: 1.0556896 | BH102: 1.0539488 | BI102: 1.052208 | BJ102: 1.0504672 | BK102: 1.0487264 | BL102: 1.0469856 | BM102: 1.0452448 | BN102: 1.043504 | BO102: 1.0417632 | BP102: 1.0400224 | BQ102: 1.0382816 | BR102: 1.0365408 | BS102: 1.0348
S103: 5.79 | T103: 1.12112 | V103: 1.1192656 | W103: 1.1174112 | X103: 1.1155568 | Y103: 1.1137024 | Z103: 1.111848 | AA103: 1.1099936 | AB103: 1.1081392 | AC103: 1.1062848 | AD103: 1.1044304 | AE103: 1.102576 | AF103: 1.1007216 | AG103: 1.0988672 | AH103: 1.1006496 | AI103: 1.0987888 | AJ103: 1.093304 | AK103: 1.0914496 | AL103: 1.0895952 | AM103: 1.0877408 | AN103: 1.0858864 | AO103: 1.084032 | AP103: 1.0821776 | AQ103: 1.0803232 | AR103: 1.0784688 | AS103: 1.0766144 | AT103: 1.07476 | AU103: 1.0730256 | AV103: 1.0712912 | AW103: 1.0695568 | AX103: 1.0678224 | AY103: 1.066088 | AZ103: 1.0643536 | BA103: 1.0626192 | BB103: 1.0608848 | BC103: 1.0591504 | BD103: 1.057416 | BE103: 1.0556816 | BF103: 1.0539472 | BG103: 1.0522128 | BH103: 1.0504784 | BI103: 1.048744 | BJ103: 1.0470096 | BK103: 1.0452752 | BL103: 1.0435408 | BM103: 1.0418064 | BN103: 1.040072 | BO103: 1.0383376 | BP103: 1.0366032 | BQ103: 1.0348688 | BR103: 1.0331344 | BS103: 1.0314
S104: 5.8 | T104: 1.1174 | V104: 1.115552 | W104: 1.113704 | X104: 1.111856 | Y104: 1.110008 | Z104: 1.10816 | AA104: 1.106312 | AB104: 1.104464 | AC104: 1.102616 | AD104: 1.100768 | AE104: 1.09892 | AF104: 1.097072 | AG104: 1.095224 | AH104: 1.0970128 | AI104: 1.0951584 | AJ104: 1.08968 | AK104: 1.087832 | AL104: 1.085984 | AM104: 1.084136 | AN104: 1.082288 | AO104: 1.08044 | AP104: 1.078592 | AQ104: 1.076744 | AR104: 1.074896 | AS104: 1.073048 | AT104: 1.0712 | AU104: 1.069472 | AV104: 1.067744 | AW104: 1.066016 | AX104: 1.064288 | AY104: 1.06256 | AZ104: 1.060832 | BA104: 1.059104 | BB104: 1.057376 | BC104: 1.055648 | BD104: 1.05392 | BE104: 1.052192 | BF104: 1.050464 | BG104: 1.048736 | BH104: 1.047008 | BI104: 1.04528 | BJ104: 1.043552 | BK104: 1.041824 | BL104: 1.040096 | BM104: 1.038368 | BN104: 1.03664 | BO104: 1.034912 | BP104: 1.033184 | BQ104: 1.031456 | BR104: 1.029728 | BS104: 1.028
S105: 5.81 | T105: 1.11368 | V105: 1.1118384 | W105: 1.1099968 | X105: 1.1081552 | Y105: 1.1063136 | Z105: 1.104472 | AA105: 1.1026304 | AB105: 1.1007888 | AC105: 1.0989472 | AD105: 1.0971056 | AE105: 1.095264 | AF105: 1.0934224 | AG105: 1.0915808 | AH105: 1.093376 | AI105: 1.091528 | AJ105: 1.086056 | AK105: 1.0842144 | AL105: 1.0823728 | AM105: 1.0805312 | AN105: 1.0786896 | AO105: 1.076848 | AP105: 1.0750064 | AQ105: 1.0731648 | AR105: 1.0713232 | AS105: 1.0694816 | AT105: 1.06764 | AU105: 1.0659184 | AV105: 1.0641968 | AW105: 1.0624752 | AX105: 1.0607536 | AY105: 1.059032 | AZ105: 1.0573104 | BA105: 1.0555888 | BB105: 1.0538672 | BC105: 1.0521456 | BD105: 1.050424 | BE105: 1.0487024 | BF105: 1.0469808 | BG105: 1.0452592 | BH105: 1.0435376 | BI105: 1.041816 | BJ105: 1.0400944 | BK105: 1.0383728 | BL105: 1.0366512 | BM105: 1.0349296 | BN105: 1.033208 | BO105: 1.0314864 | BP105: 1.0297648 | BQ105: 1.0280432 | BR105: 1.0263216 | BS105: 1.0246
S106: 5.82 | T106: 1.10996 | V106: 1.1081248 | W106: 1.1062896 | X106: 1.1044544 | Y106: 1.1026192 | Z106: 1.100784 | AA106: 1.0989488 | AB106: 1.0971136 | AC106: 1.0952784 | AD106: 1.0934432 | AE106: 1.091608 | AF106: 1.0897728 | AG106: 1.0879376 | AH106: 1.0897392 | AI106: 1.0878976 | AJ106: 1.082432 | AK106: 1.0805968 | AL106: 1.0787616 | AM106: 1.0769264 | AN106: 1.0750912 | AO106: 1.073256 | AP106: 1.0714208 | AQ106: 1.0695856 | AR106: 1.0677504 | AS106: 1.0659152 | AT106: 1.06408 | AU106: 1.0623648 | AV106: 1.0606496 | AW106: 1.0589344 | AX106: 1.0572192 | AY106: 1.055504 | AZ106: 1.0537888 | BA106: 1.0520736 | BB106: 1.0503584 | BC106: 1.0486432 | BD106: 1.046928 | BE106: 1.0452128 | BF106: 1.0434976 | BG106: 1.0417824 | BH106: 1.0400672 | BI106: 1.038352 | BJ106: 1.0366368 | BK106: 1.0349216 | BL106: 1.0332064 | BM106: 1.0314912 | BN106: 1.029776 | BO106: 1.0280608 | BP106: 1.0263456 | BQ106: 1.0246304 | BR106: 1.0229152 | BS106: 1.0212
S107: 5.83 | T107: 1.10624 | V107: 1.1044112 | W107: 1.1025824 | X107: 1.1007536 | Y107: 1.0989248 | Z107: 1.097096 | AA107: 1.0952672 | AB107: 1.0934384 | AC107: 1.0916096 | AD107: 1.0897808 | AE107: 1.087952 | AF107: 1.0861232 | AG107: 1.0842944 | AH107: 1.0861024 | AI107: 1.0842672 | AJ107: 1.078808 | AK107: 1.0769792 | AL107: 1.0751504 | AM107: 1.0733216 | AN107: 1.0714928 | AO107: 1.069664 | AP107: 1.0678352 | AQ107: 1.0660064 | AR107: 1.0641776 | AS107: 1.0623488 | AT107: 1.06052 | AU107: 1.0588112 | AV107: 1.0571024 | AW107: 1.0553936 | AX107: 1.0536848 | AY107: 1.051976 | AZ107: 1.0502672 | BA107: 1.0485584 | BB107: 1.0468496 | BC107: 1.0451408 | BD107: 1.043432 | BE107: 1.0417232 | BF107: 1.0400144 | BG107: 1.0383056 | BH107: 1.0365968 | BI107: 1.034888 | BJ107: 1.0331792 | BK107: 1.0314704 | BL107: 1.0297616 | BM107: 1.0280528 | BN107: 1.026344 | BO107: 1.0246352 | BP107: 1.0229264 | BQ107: 1.0212176 | BR107: 1.0195088 | BS107: 1.0178
S108: 5.84 | T108: 1.10252 | V108: 1.1006976 | W108: 1.0988752 | X108: 1.0970528 | Y108: 1.0952304 | Z108: 1.093408 | AA108: 1.0915856 | AB108: 1.0897632 | AC108: 1.0879408 | AD108: 1.0861184 | AE108: 1.084296 | AF108: 1.0824736 | AG108: 1.0806512 | AH108: 1.0824656 | AI108: 1.0806368 | AJ108: 1.075184 | AK108: 1.0733616 | AL108: 1.0715392 | AM108: 1.0697168 | AN108: 1.0678944 | AO108: 1.066072 | AP108: 1.0642496 | AQ108: 1.0624272 | AR108: 1.0606048 | AS108: 1.0587824 | AT108: 1.05696 | AU108: 1.0552576 | AV108: 1.0535552 | AW108: 1.0518528 | AX108: 1.0501504 | AY108: 1.048448 | AZ108: 1.0467456 | BA108: 1.0450432 | BB108: 1.0433408 | BC108: 1.0416384 | BD108: 1.039936 | BE108: 1.0382336 | BF108: 1.0365312 | BG108: 1.0348288 | BH108: 1.0331264 | BI108: 1.031424 | BJ108: 1.0297216 | BK108: 1.0280192 | BL108: 1.0263168 | BM108: 1.0246144 | BN108: 1.022912 | BO108: 1.0212096 | BP108: 1.0195072 | BQ108: 1.0178048 | BR108: 1.0161024 | BS108: 1.0144
S109: 5.85 | T109: 1.0988 | V109: 1.096984 | W109: 1.095168 | X109: 1.093352 | Y109: 1.091536 | Z109: 1.08972 | AA109: 1.087904 | AB109: 1.086088 | AC109: 1.084272 | AD109: 1.082456 | AE109: 1.08064 | AF109: 1.078824 | AG109: 1.077008 | AH109: 1.0788288 | AI109: 1.0770064 | AJ109: 1.07156 | AK109: 1.069744 | AL109: 1.067928 | AM109: 1.066112 | AN109: 1.064296 | AO109: 1.06248 | AP109: 1.060664 | AQ109: 1.058848 | AR109: 1.057032 | AS109: 1.055216 | AT109: 1.0534 | AU109: 1.051704 | AV109: 1.050008 | AW109: 1.048312 | AX109: 1.046616 | AY109: 1.04492 | AZ109: 1.043224 | BA109: 1.041528 | BB109: 1.039832 | BC109: 1.038136 | BD109: 1.03644 | BE109: 1.034744 | BF109: 1.033048 | BG109: 1.031352 | BH109: 1.029656 | BI109: 1.02796 | BJ109: 1.026264 | BK109: 1.024568 | BL109: 1.022872 | BM109: 1.021176 | BN109: 1.01948 | BO109: 1.017784 | BP109: 1.016088 | BQ109: 1.014392 | BR109: 1.012696 | BS109: 1.011
S110: 5.86 | T110: 1.09508 | V110: 1.0932704 | W110: 1.0914608 | X110: 1.0896512 | Y110: 1.0878416 | Z110: 1.086032 | AA110: 1.0842224 | AB110: 1.0824128 | AC110: 1.0806032 | AD110: 1.0787936 | AE110: 1.076984 | AF110: 1.0751744 | AG110: 1.0733648 | AH110: 1.075192 | AI110: 1.073376 | AJ110: 1.067936 | AK110: 1.0661264 | AL110: 1.0643168 | AM110: 1.0625072 | AN110: 1.0606976 | AO110: 1.058888 | AP110: 1.0570784 | AQ110: 1.0552688 | AR110: 1.0534592 | AS110: 1.0516496 | AT110: 1.04984 | AU110: 1.0481504 | AV110: 1.0464608 | AW110: 1.0447712 | AX110: 1.0430816 | AY110: 1.041392 | AZ110: 1.0397024 | BA110: 1.0380128 | BB110: 1.0363232 | BC110: 1.0346336 | BD110: 1.032944 | BE110: 1.0312544 | BF110: 1.0295648 | BG110: 1.0278752 | BH110: 1.0261856 | BI110: 1.024496 | BJ110: 1.0228064 | BK110: 1.0211168 | BL110: 1.0194272 | BM110: 1.0177376 | BN110: 1.016048 | BO110: 1.0143584 | BP110: 1.0126688 | BQ110: 1.0109792 | BR110: 1.0092896 | BS110: 1.0076
S111: 5.87 | T111: 1.09136 | V111: 1.0895568 | W111: 1.0877536 | X111: 1.0859504 | Y111: 1.0841472 | Z111: 1.082344 | AA111: 1.0805408 | AB111: 1.0787376 | AC111: 1.0769344 | AD111: 1.0751312 | AE111: 1.073328 | AF111: 1.0715248 | AG111: 1.0697216 | AH111: 1.0715552 | AI111: 1.0697456 | AJ111: 1.064312 | AK111: 1.0625088 | AL111: 1.0607056 | AM111: 1.0589024 | AN111: 1.0570992 | AO111: 1.055296 | AP111: 1.0534928 | AQ111: 1.0516896 | AR111: 1.0498864 | AS111: 1.0480832 | AT111: 1.04628 | AU111: 1.0445968 | AV111: 1.0429136 | AW111: 1.0412304 | AX111: 1.0395472 | AY111: 1.037864 | AZ111: 1.0361808 | BA111: 1.0344976 | BB111: 1.0328144 | BC111: 1.0311312 | BD111: 1.029448 | BE111: 1.0277648 | BF111: 1.0260816 | BG111: 1.0243984 | BH111: 1.0227152 | BI111: 1.021032 | BJ111: 1.0193488 | BK111: 1.0176656 | BL111: 1.0159824 | BM111: 1.0142992 | BN111: 1.012616 | BO111: 1.0109328 | BP111: 1.0092496 | BQ111: 1.0075664 | BR111: 1.0058832 | BS111: 1.0042
S112: 5.88 | T112: 1.08764 | V112: 1.0858432 | W112: 1.0840464 | X112: 1.0822496 | Y112: 1.0804528 | Z112: 1.078656 | AA112: 1.0768592 | AB112: 1.0750624 | AC112: 1.0732656 | AD112: 1.0714688 | AE112: 1.069672 | AF112: 1.0678752 | AG112: 1.0660784 | AH112: 1.0679184 | AI112: 1.0661152 | AJ112: 1.060688 | AK112: 1.0588912 | AL112: 1.0570944 | AM112: 1.0552976 | AN112: 1.0535008 | AO112: 1.051704 | AP112: 1.0499072 | AQ112: 1.0481104 | AR112: 1.0463136 | AS112: 1.0445168 | AT112: 1.04272 | AU112: 1.0410432 | AV112: 1.0393664 | AW112: 1.0376896 | AX112: 1.0360128 | AY112: 1.034336 | AZ112: 1.0326592 | BA112: 1.0309824 | BB112: 1.0293056 | BC112: 1.0276288 | BD112: 1.025952 | BE112: 1.0242752 | BF112: 1.0225984 | BG112: 1.0209216 | BH112: 1.0192448 | BI112: 1.017568 | BJ112: 1.0158912 | BK112: 1.0142144 | BL112: 1.0125376 | BM112: 1.0108608 | BN112: 1.009184 | BO112: 1.0075072 | BP112: 1.0058304 | BQ112: 1.0041536 | BR112: 1.0024768 | BS112: 1.0008
S113: 5.89 | T113: 1.08392 | V113: 1.0821296 | W113: 1.0803392 | X113: 1.0785488 | Y113: 1.0767584 | Z113: 1.074968 | AA113: 1.0731776 | AB113: 1.0713872 | AC113: 1.0695968 | AD113: 1.0678064 | AE113: 1.066016 | AF113: 1.0642256 | AG113: 1.0624352 | AH113: 1.0642816 | AI113: 1.0624848 | AJ113: 1.057064 | AK113: 1.0552736 | AL113: 1.0534832 | AM113: 1.0516928 | AN113: 1.0499024 | AO113: 1.048112 | AP113: 1.0463216 | AQ113: 1.0445312 | AR113: 1.0427408 | AS113: 1.0409504 | AT113: 1.03916 | AU113: 1.0374896 | AV113: 1.0358192 | AW113: 1.0341488 | AX113: 1.0324784 | AY113: 1.030808 | AZ113: 1.0291376 | BA113: 1.0274672 | BB113: 1.0257968 | BC113: 1.0241264 | BD113: 1.022456 | BE113: 1.0207856 | BF113: 1.0191152 | BG113: 1.0174448 | BH113: 1.0157744 | BI113: 1.014104 | BJ113: 1.0124336 | BK113: 1.0107632 | BL113: 1.0090928 | BM113: 1.0074224 | BN113: 1.005752 | BO113: 1.0040816 | BP113: 1.0024112 | BQ113: 1.0007408 | BR113: 0.9990704 | BS113: 0.9974
S114: 5.9 | T114: 1.0802 | V114: 1.078416 | W114: 1.076632 | X114: 1.074848 | Y114: 1.073064 | Z114: 1.07128 | AA114: 1.069496 | AB114: 1.067712 | AC114: 1.065928 | AD114: 1.064144 | AE114: 1.06236 | AF114: 1.060576 | AG114: 1.058792 | AH114: 1.0606448 | AI114: 1.0588544 | AJ114: 1.05344 | AK114: 1.051656 | AL114: 1.049872 | AM114: 1.048088 | AN114: 1.046304 | AO114: 1.04452 | AP114: 1.042736 | AQ114: 1.040952 | AR114: 1.039168 | AS114: 1.037384 | AT114: 1.0356 | AU114: 1.033936 | AV114: 1.032272 | AW114: 1.030608 | AX114: 1.028944 | AY114: 1.02728 | AZ114: 1.025616 | BA114: 1.023952 | BB114: 1.022288 | BC114: 1.020624 | BD114: 1.01896 | BE114: 1.017296 | BF114: 1.015632 | BG114: 1.013968 | BH114: 1.012304 | BI114: 1.01064 | BJ114: 1.008976 | BK114: 1.007312 | BL114: 1.005648 | BM114: 1.003984 | BN114: 1.00232 | BO114: 1.000656 | BP114: 0.998992 | BQ114: 0.997328 | BR114: 0.995664 | BS114: 0.994
S115: 5.91 | T115: 1.07648 | V115: 1.0747024 | W115: 1.0729248 | X115: 1.0711472 | Y115: 1.0693696 | Z115: 1.067592 | AA115: 1.0658144 | AB115: 1.0640368 | AC115: 1.0622592 | AD115: 1.0604816 | AE115: 1.058704 | AF115: 1.0569264 | AG115: 1.0551488 | AH115: 1.057008 | AI115: 1.055224 | AJ115: 1.049816 | AK115: 1.0480384 | AL115: 1.0462608 | AM115: 1.0444832 | AN115: 1.0427056 | AO115: 1.040928 | AP115: 1.0391504 | AQ115: 1.0373728 | AR115: 1.0355952 | AS115: 1.0338176 | AT115: 1.03204 | AU115: 1.0303824 | AV115: 1.0287248 | AW115: 1.0270672 | AX115: 1.0254096 | AY115: 1.023752 | AZ115: 1.0220944 | BA115: 1.0204368 | BB115: 1.0187792 | BC115: 1.0171216 | BD115: 1.015464 | BE115: 1.0138064 | BF115: 1.0121488 | BG115: 1.0104912 | BH115: 1.0088336 | BI115: 1.007176 | BJ115: 1.0055184 | BK115: 1.0038608 | BL115: 1.0022032 | BM115: 1.0005456 | BN115: 0.998888 | BO115: 0.9972304 | BP115: 0.9955728 | BQ115: 0.9939152 | BR115: 0.9922576 | BS115: 0.9906
S116: 5.92 | T116: 1.07276 | V116: 1.0709888 | W116: 1.0692176 | X116: 1.0674464 | Y116: 1.0656752 | Z116: 1.063904 | AA116: 1.0621328 | AB116: 1.0603616 | AC116: 1.0585904 | AD116: 1.0568192 | AE116: 1.055048 | AF116: 1.0532768 | AG116: 1.0515056 | AH116: 1.0533712 | AI116: 1.0515936 | AJ116: 1.046192 | AK116: 1.0444208 | AL116: 1.0426496 | AM116: 1.0408784 | AN116: 1.0391072 | AO116: 1.037336 | AP116: 1.0355648 | AQ116: 1.0337936 | AR116: 1.0320224 | AS116: 1.0302512 | AT116: 1.02848 | AU116: 1.0268288 | AV116: 1.0251776 | AW116: 1.0235264 | AX116: 1.0218752 | AY116: 1.020224 | AZ116: 1.0185728 | BA116: 1.0169216 | BB116: 1.0152704 | BC116: 1.0136192 | BD116: 1.011968 | BE116: 1.0103168 | BF116: 1.0086656 | BG116: 1.0070144 | BH116: 1.0053632 | BI116: 1.003712 | BJ116: 1.0020608 | BK116: 1.0004096 | BL116: 0.9987584 | BM116: 0.9971072 | BN116: 0.995456 | BO116: 0.9938048 | BP116: 0.9921536 | BQ116: 0.9905024 | BR116: 0.9888512 | BS116: 0.9872
S117: 5.93 | T117: 1.06904 | V117: 1.0672752 | W117: 1.0655104 | X117: 1.0637456 | Y117: 1.0619808 | Z117: 1.060216 | AA117: 1.0584512 | AB117: 1.0566864 | AC117: 1.0549216 | AD117: 1.0531568 | AE117: 1.051392 | AF117: 1.0496272 | AG117: 1.0478624 | AH117: 1.0497344 | AI117: 1.0479632 | AJ117: 1.042568 | AK117: 1.0408032 | AL117: 1.0390384 | AM117: 1.0372736 | AN117: 1.0355088 | AO117: 1.033744 | AP117: 1.0319792 | AQ117: 1.0302144 | AR117: 1.0284496 | AS117: 1.0266848 | AT117: 1.02492 | AU117: 1.0232752 | AV117: 1.0216304 | AW117: 1.0199856 | AX117: 1.0183408 | AY117: 1.016696 | AZ117: 1.0150512 | BA117: 1.0134064 | BB117: 1.0117616 | BC117: 1.0101168 | BD117: 1.008472 | BE117: 1.0068272 | BF117: 1.0051824 | BG117: 1.0035376 | BH117: 1.0018928 | BI117: 1.000248 | BJ117: 0.9986032 | BK117: 0.9969584 | BL117: 0.9953136 | BM117: 0.9936688 | BN117: 0.992024 | BO117: 0.9903792 | BP117: 0.9887344 | BQ117: 0.9870896 | BR117: 0.9854448 | BS117: 0.9838
S118: 5.94 | T118: 1.06532 | V118: 1.0635616 | W118: 1.0618032 | X118: 1.0600448 | Y118: 1.0582864 | Z118: 1.056528 | AA118: 1.0547696 | AB118: 1.0530112 | AC118: 1.0512528 | AD118: 1.0494944 | AE118: 1.047736 | AF118: 1.0459776 | AG118: 1.0442192 | AH118: 1.0460976 | AI118: 1.0443328 | AJ118: 1.038944 | AK118: 1.0371856 | AL118: 1.0354272 | AM118: 1.0336688 | AN118: 1.0319104 | AO118: 1.030152 | AP118: 1.0283936 | AQ118: 1.0266352 | AR118: 1.0248768 | AS118: 1.0231184 | AT118: 1.02136 | AU118: 1.0197216 | AV118: 1.0180832 | AW118: 1.0164448 | AX118: 1.0148064 | AY118: 1.013168 | AZ118: 1.0115296 | BA118: 1.0098912 | BB118: 1.0082528 | BC118: 1.0066144 | BD118: 1.004976 | BE118: 1.0033376 | BF118: 1.0016992 | BG118: 1.0000608 | BH118: 0.9984224 | BI118: 0.996784 | BJ118: 0.9951456 | BK118: 0.9935072 | BL118: 0.9918688 | BM118: 0.9902304 | BN118: 0.988592 | BO118: 0.9869536 | BP118: 0.9853152 | BQ118: 0.9836768 | BR118: 0.9820384 | BS118: 0.9804
S119: 5.95 | T119: 1.0616 | V119: 1.059848 | W119: 1.058096 | X119: 1.056344 | Y119: 1.054592 | Z119: 1.05284 | AA119: 1.051088 | AB119: 1.049336 | AC119: 1.047584 | AD119: 1.045832 | AE119: 1.04408 | AF119: 1.042328 | AG119: 1.040576 | AH119: 1.0424608 | AI119: 1.0407024 | AJ119: 1.03532 | AK119: 1.033568 | AL119: 1.031816 | AM119: 1.030064 | AN119: 1.028312 | AO119: 1.02656 | AP119: 1.024808 | AQ119: 1.023056 | AR119: 1.021304 | AS119: 1.019552 | AT119: 1.0178 | AU119: 1.016168 | AV119: 1.014536 | AW119: 1.012904 | AX119: 1.011272 | AY119: 1.00964 | AZ119: 1.008008 | BA119: 1.006376 | BB119: 1.004744 | BC119: 1.003112 | BD119: 1.00148 | BE119: 0.999848 | BF119: 0.998216 | BG119: 0.996584 | BH119: 0.994952 | BI119: 0.99332 | BJ119: 0.991688 | BK119: 0.990056 | BL119: 0.988424 | BM119: 0.986792 | BN119: 0.98516 | BO119: 0.983528 | BP119: 0.981896 | BQ119: 0.980264 | BR119: 0.978632 | BS119: 0.977
S120: 5.96 | T120: 1.05788 | V120: 1.0561344 | W120: 1.0543888 | X120: 1.0526432 | Y120: 1.0508976 | Z120: 1.049152 | AA120: 1.0474064 | AB120: 1.0456608 | AC120: 1.0439152 | AD120: 1.0421696 | AE120: 1.040424 | AF120: 1.0386784 | AG120: 1.0369328 | AH120: 1.038824 | AI120: 1.037072 | AJ120: 1.031696 | AK120: 1.0299504 | AL120: 1.0282048 | AM120: 1.0264592 | AN120: 1.0247136 | AO120: 1.022968 | AP120: 1.0212224 | AQ120: 1.0194768 | AR120: 1.0177312 | AS120: 1.0159856 | AT120: 1.01424 | AU120: 1.0126144 | AV120: 1.0109888 | AW120: 1.0093632 | AX120: 1.0077376 | AY120: 1.006112 | AZ120: 1.0044864 | BA120: 1.0028608 | BB120: 1.0012352 | BC120: 0.9996096 | BD120: 0.997984 | BE120: 0.9963584 | BF120: 0.9947328 | BG120: 0.9931072 | BH120: 0.9914816 | BI120: 0.989856 | BJ120: 0.9882304 | BK120: 0.9866048 | BL120: 0.9849792 | BM120: 0.9833536 | BN120: 0.981728 | BO120: 0.9801024 | BP120: 0.9784768 | BQ120: 0.9768512 | BR120: 0.9752256 | BS120: 0.9736
S121: 5.97 | T121: 1.05416 | V121: 1.0524208 | W121: 1.0506816 | X121: 1.0489424 | Y121: 1.0472032 | Z121: 1.045464 | AA121: 1.0437248 | AB121: 1.0419856 | AC121: 1.0402464 | AD121: 1.0385072 | AE121: 1.036768 | AF121: 1.0350288 | AG121: 1.0332896 | AH121: 1.0351872 | AI121: 1.0334416 | AJ121: 1.028072 | AK121: 1.0263328 | AL121: 1.0245936 | AM121: 1.0228544 | AN121: 1.0211152 | AO121: 1.019376 | AP121: 1.0176368 | AQ121: 1.0158976 | AR121: 1.0141584 | AS121: 1.0124192 | AT121: 1.01068 | AU121: 1.0090608 | AV121: 1.0074416 | AW121: 1.0058224 | AX121: 1.0042032 | AY121: 1.002584 | AZ121: 1.0009648 | BA121: 0.9993456 | BB121: 0.9977264 | BC121: 0.9961072 | BD121: 0.994488 | BE121: 0.9928688 | BF121: 0.9912496 | BG121: 0.9896304 | BH121: 0.9880112 | BI121: 0.986392 | BJ121: 0.9847728 | BK121: 0.9831536 | BL121: 0.9815344 | BM121: 0.9799152 | BN121: 0.978296 | BO121: 0.9766768 | BP121: 0.9750576 | BQ121: 0.9734384 | BR121: 0.9718192 | BS121: 0.9702
S122: 5.98 | T122: 1.05044 | V122: 1.0487072 | W122: 1.0469744 | X122: 1.0452416 | Y122: 1.0435088 | Z122: 1.041776 | AA122: 1.0400432 | AB122: 1.0383104 | AC122: 1.0365776 | AD122: 1.0348448 | AE122: 1.033112 | AF122: 1.0313792 | AG122: 1.0296464 | AH122: 1.0315504 | AI122: 1.0298112 | AJ122: 1.024448 | AK122: 1.0227152 | AL122: 1.0209824 | AM122: 1.0192496 | AN122: 1.0175168 | AO122: 1.015784 | AP122: 1.0140512 | AQ122: 1.0123184 | AR122: 1.0105856 | AS122: 1.0088528 | AT122: 1.00712 | AU122: 1.0055072 | AV122: 1.0038944 | AW122: 1.0022816 | AX122: 1.0006688 | AY122: 0.999056 | AZ122: 0.9974432 | BA122: 0.9958304 | BB122: 0.9942176 | BC122: 0.9926048 | BD122: 0.990992 | BE122: 0.9893792 | BF122: 0.9877664 | BG122: 0.9861536 | BH122: 0.9845408 | BI122: 0.982928 | BJ122: 0.9813152 | BK122: 0.9797024 | BL122: 0.9780896 | BM122: 0.9764768 | BN122: 0.974864 | BO122: 0.9732512 | BP122: 0.9716384 | BQ122: 0.9700256 | BR122: 0.9684128 | BS122: 0.9668
S123: 5.99 | T123: 1.04672 | V123: 1.0449936 | W123: 1.0432672 | X123: 1.0415408 | Y123: 1.0398144 | Z123: 1.038088 | AA123: 1.0363616 | AB123: 1.0346352 | AC123: 1.0329088 | AD123: 1.0311824 | AE123: 1.029456 | AF123: 1.0277296 | AG123: 1.0260032 | AH123: 1.0279136 | AI123: 1.0261808 | AJ123: 1.020824 | AK123: 1.0190976 | AL123: 1.0173712 | AM123: 1.0156448 | AN123: 1.0139184 | AO123: 1.012192 | AP123: 1.0104656 | AQ123: 1.0087392 | AR123: 1.0070128 | AS123: 1.0052864 | AT123: =AT124+(0.089/25) -> 1.00356 | AU123: 1.0019536 | AV123: 1.0003472 | AW123: 0.9987408 | AX123: 0.9971344 | AY123: 0.995528 | AZ123: 0.9939216 | BA123: 0.9923152 | BB123: 0.9907088 | BC123: 0.9891024 | BD123: 0.987496 | BE123: 0.9858896 | BF123: 0.9842832 | BG123: 0.9826768 | BH123: 0.9810704 | BI123: 0.979464 | BJ123: 0.9778576 | BK123: 0.9762512 | BL123: 0.9746448 | BM123: 0.9730384 | BN123: 0.971432 | BO123: 0.9698256 | BP123: 0.9682192 | BQ123: 0.9666128 | BR123: 0.9650064 | BS123: 0.9634
S124: 6 | T124: =V124+(0.043/25) -> 1.043 | V124: =W124+(0.043/25) -> 1.04128 | W124: 1.03956 | X124: 1.03784 | Y124: 1.03612 | Z124: 1.0344 | AA124: 1.03268 | AB124: 1.03096 | AC124: 1.02924 | AD124: 1.02752 | AE124: 1.0258 | AF124: 1.02408 | AG124: =AH125+(0.043/25) -> 1.02236 | AH124: 1.0242768 | AI124: 1.0225504 | AJ124: 1.0172 | AK124: 1.01548 | AL124: 1.01376 | AM124: 1.01204 | AN124: 1.01032 | AO124: 1.0086 | AP124: 1.00688 | AQ124: 1.00516 | AR124: 1.00344 | AS124: =AT124+(0.043/25) -> 1.00172 | AT124: 1 | AU124: =AT124-(0.04/25) -> 0.9984 | AV124: =AU124-(0.04/25) -> 0.9968 | AW124: 0.9952 | AX124: 0.9936 | AY124: 0.992 | AZ124: 0.9904 | BA124: 0.9888 | BB124: 0.9872 | BC124: 0.9856 | BD124: 0.984 | BE124: 0.9824 | BF124: 0.9808 | BG124: 0.9792 | BH124: 0.9776 | BI124: 0.976 | BJ124: 0.9744 | BK124: 0.9728 | BL124: 0.9712 | BM124: 0.9696 | BN124: 0.968 | BO124: 0.9664 | BP124: 0.9648 | BQ124: 0.9632 | BR124: 0.9616 | BS124: 0.96
S125: 6.01 | T125: =T124-(($T$124-$T$149)/25) -> 1.03976 | V125: =V124-(($V$124-$V$149)/25) -> 1.0380448 | W125: =W124-(($W$124-$W$149)/25) -> 1.0363296 | X125: =X124-(($X$124-$X$149)/25) -> 1.0346144 | Y125: =Y124-(($Y$124-$Y$149)/25) -> 1.0328992 | Z125: =Z124-(($Z$124-$Z$149)/25) -> 1.031184 | AA125: =AA124-(($AA$124-$AA$149)/25) -> 1.0294688 | AB125: =AB124-(($AB$124-$AB$149)/25) -> 1.0277536 | AC125: =AC124-(($AC$124-$AC$149)/25) -> 1.0260384 | AD125: =AD124-(($AD$124-$AD$149)/25) -> 1.0243232 | AE125: =AE124-(($AE$124-$AE$149)/25) -> 1.022608 | AF125: =AF124-(($AF$124-$AF$149)/25) -> 1.0208928 | AG125: =AG124-(($AG$124-$AG$149)/25) -> 1.0191776 | AH125: 1.02064 | AI125: =AJ124+(0.043/25) -> 1.01892 | AJ125: =AJ124-(($AJ$124-$AJ$149)/25) -> 1.014032 | AK125: =AK124-(($AK$124-$AK$149)/25) -> 1.0123168 | AL125: =AL124-(($AL$124-$AL$149)/25) -> 1.0106016 | AM125: =AM124-(($AM$124-$AM$149)/25) -> 1.0088864 | AN125: =AN124-(($AN$124-$AN$149)/25) -> 1.0071712 | AO125: =AO124-(($AO$124-$AO$149)/25) -> 1.005456 | AP125: =AP124-(($AP$124-$AP$149)/25) -> 1.0037408 | AQ125: =AQ124-(($AQ$124-$AQ$149)/25) -> 1.0020256 | AR125: =AR124-(($AR$124-$AR$149)/25) -> 1.0003104 | AS125: =AS124-(($AS$124-$AS$149)/25) -> 0.9985952 | AT125: =AT124-(0.078/25) -> 0.99688 | AU125: =AU124-(($AU$124-$AU$149)/25) -> 0.9952848 | AV125: =AV124-(($AV$124-$AV$149)/25) -> 0.9936896 | AW125: =AW124-(($AW$124-$AW$149)/25) -> 0.9920944 | AX125: =AX124-(($AX$124-$AX$149)/25) -> 0.9904992 | AY125: =AY124-(($AY$124-$AY$149)/25) -> 0.988904 | AZ125: =AZ124-(($AZ$124-$AZ$149)/25) -> 0.9873088 | BA125: =BA124-(($BA$124-$BA$149)/25) -> 0.9857136 | BB125: =BB124-(($BB$124-$BB$149)/25) -> 0.9841184 | BC125: =BC124-(($BC$124-$BC$149)/25) -> 0.9825232 | BD125: =BD124-(($BD$124-$BD$149)/25) -> 0.980928 | BE125: =BE124-(($BE$124-$BE$149)/25) -> 0.9793328 | BF125: =BF124-(($BF$124-$BF$149)/25) -> 0.9777376 | BG125: =BG124-(($BG$124-$BG$149)/25) -> 0.9761424 | BH125: =BH124-(($BH$124-$BH$149)/25) -> 0.9745472 | BI125: =BI124-(($BI$124-$BI$149)/25) -> 0.972952 | BJ125: =BJ124-(($BJ$124-$BJ$149)/25) -> 0.9713568 | BK125: =BK124-(($BK$124-$BK$149)/25) -> 0.9697616 | BL125: =BL124-(($BL$124-$BL$149)/25) -> 0.9681664 | BM125: =BM124-(($BM$124-$BM$149)/25) -> 0.9665712 | BN125: =BN124-(($BN$124-$BN$149)/25) -> 0.964976 | BO125: =BO124-(($BO$124-$BO$149)/25) -> 0.9633808 | BP125: =BP124-(($BP$124-$BP$149)/25) -> 0.9617856 | BQ125: =BQ124-(($BQ$124-$BQ$149)/25) -> 0.9601904 | BR125: =BR124-(($BR$124-$BR$149)/25) -> 0.9585952 | BS125: =BS124-(($BS$124-$BS$149)/25) -> 0.957
S126: 6.02 | T126: =T125-(($T$124-$T$149)/25) -> 1.03652 | V126: =V125-(($V$124-$V$149)/25) -> 1.0348096 | W126: =W125-(($W$124-$W$149)/25) -> 1.0330992 | X126: =X125-(($X$124-$X$149)/25) -> 1.0313888 | Y126: =Y125-(($Y$124-$Y$149)/25) -> 1.0296784 | Z126: =Z125-(($Z$124-$Z$149)/25) -> 1.027968 | AA126: =AA125-(($AA$124-$AA$149)/25) -> 1.0262576 | AB126: =AB125-(($AB$124-$AB$149)/25) -> 1.0245472 | AC126: =AC125-(($AC$124-$AC$149)/25) -> 1.0228368 | AD126: =AD125-(($AD$124-$AD$149)/25) -> 1.0211264 | AE126: =AE125-(($AE$124-$AE$149)/25) -> 1.019416 | AF126: =AF125-(($AF$124-$AF$149)/25) -> 1.0177056 | AG126: =AG125-(($AG$124-$AG$149)/25) -> 1.0159952 | AH126: =AH125-(($AH$125-$AH$150)/25) -> 1.0174624 | AI126: =AI125-(($AI$125-$AI$150)/25) -> 1.0157472 | AJ126: =AJ125-(($AJ$124-$AJ$149)/25) -> 1.010864 | AK126: =AK125-(($AK$124-$AK$149)/25) -> 1.0091536 | AL126: =AL125-(($AL$124-$AL$149)/25) -> 1.0074432 | AM126: =AM125-(($AM$124-$AM$149)/25) -> 1.0057328 | AN126: =AN125-(($AN$124-$AN$149)/25) -> 1.0040224 | AO126: =AO125-(($AO$124-$AO$149)/25) -> 1.002312 | AP126: =AP125-(($AP$124-$AP$149)/25) -> 1.0006016 | AQ126: =AQ125-(($AQ$124-$AQ$149)/25) -> 0.9988912 | AR126: =AR125-(($AR$124-$AR$149)/25) -> 0.9971808 | AS126: =AS125-(($AS$124-$AS$149)/25) -> 0.9954704 | AT126: =AT125-(0.078/25) -> 0.99376 | AU126: =AU125-(($AU$124-$AU$149)/25) -> 0.9921696 | AV126: =AV125-(($AV$124-$AV$149)/25) -> 0.9905792 | AW126: =AW125-(($AW$124-$AW$149)/25) -> 0.9889888 | AX126: =AX125-(($AX$124-$AX$149)/25) -> 0.9873984 | AY126: =AY125-(($AY$124-$AY$149)/25) -> 0.985808 | AZ126: =AZ125-(($AZ$124-$AZ$149)/25) -> 0.9842176 | BA126: =BA125-(($BA$124-$BA$149)/25) -> 0.9826272 | BB126: =BB125-(($BB$124-$BB$149)/25) -> 0.9810368 | BC126: =BC125-(($BC$124-$BC$149)/25) -> 0.9794464 | BD126: =BD125-(($BD$124-$BD$149)/25) -> 0.977856 | BE126: =BE125-(($BE$124-$BE$149)/25) -> 0.9762656 | BF126: =BF125-(($BF$124-$BF$149)/25) -> 0.9746752 | BG126: =BG125-(($BG$124-$BG$149)/25) -> 0.9730848 | BH126: =BH125-(($BH$124-$BH$149)/25) -> 0.9714944 | BI126: =BI125-(($BI$124-$BI$149)/25) -> 0.969904 | BJ126: =BJ125-(($BJ$124-$BJ$149)/25) -> 0.9683136 | BK126: =BK125-(($BK$124-$BK$149)/25) -> 0.9667232 | BL126: =BL125-(($BL$124-$BL$149)/25) -> 0.9651328 | BM126: =BM125-(($BM$124-$BM$149)/25) -> 0.9635424 | BN126: =BN125-(($BN$124-$BN$149)/25) -> 0.961952 | BO126: =BO125-(($BO$124-$BO$149)/25) -> 0.9603616 | BP126: =BP125-(($BP$124-$BP$149)/25) -> 0.9587712 | BQ126: =BQ125-(($BQ$124-$BQ$149)/25) -> 0.9571808 | BR126: =BR125-(($BR$124-$BR$149)/25) -> 0.9555904 | BS126: =BS125-(($BS$124-$BS$149)/25) -> 0.954
S127: 6.03 | T127: 1.03328 | V127: 1.0315744 | W127: 1.0298688 | X127: 1.0281632 | Y127: 1.0264576 | Z127: 1.024752 | AA127: 1.0230464 | AB127: 1.0213408 | AC127: 1.0196352 | AD127: 1.0179296 | AE127: 1.016224 | AF127: 1.0145184 | AG127: 1.0128128 | AH127: 1.0142848 | AI127: 1.0125744 | AJ127: 1.007696 | AK127: 1.0059904 | AL127: 1.0042848 | AM127: 1.0025792 | AN127: 1.0008736 | AO127: 0.999168 | AP127: 0.9974624 | AQ127: 0.9957568 | AR127: 0.9940512 | AS127: 0.9923456 | AT127: 0.99064 | AU127: 0.9890544 | AV127: 0.9874688 | AW127: 0.9858832 | AX127: 0.9842976 | AY127: 0.982712 | AZ127: 0.9811264 | BA127: 0.9795408 | BB127: 0.9779552 | BC127: 0.9763696 | BD127: 0.974784 | BE127: 0.9731984 | BF127: 0.9716128 | BG127: 0.9700272 | BH127: 0.9684416 | BI127: 0.966856 | BJ127: 0.9652704 | BK127: 0.9636848 | BL127: 0.9620992 | BM127: 0.9605136 | BN127: 0.958928 | BO127: 0.9573424 | BP127: 0.9557568 | BQ127: 0.9541712 | BR127: 0.9525856 | BS127: 0.951
S128: 6.04 | T128: 1.03004 | V128: 1.0283392 | W128: 1.0266384 | X128: 1.0249376 | Y128: 1.0232368 | Z128: 1.021536 | AA128: 1.0198352 | AB128: 1.0181344 | AC128: 1.0164336 | AD128: 1.0147328 | AE128: 1.013032 | AF128: 1.0113312 | AG128: 1.0096304 | AH128: 1.0111072 | AI128: 1.0094016 | AJ128: 1.004528 | AK128: 1.0028272 | AL128: 1.0011264 | AM128: 0.9994256 | AN128: 0.9977248 | AO128: 0.996024 | AP128: 0.9943232 | AQ128: 0.9926224 | AR128: 0.9909216 | AS128: 0.9892208 | AT128: 0.98752 | AU128: 0.9859392 | AV128: 0.9843584 | AW128: 0.9827776 | AX128: 0.9811968 | AY128: 0.979616 | AZ128: 0.9780352 | BA128: 0.9764544 | BB128: 0.9748736 | BC128: 0.9732928 | BD128: 0.971712 | BE128: 0.9701312 | BF128: 0.9685504 | BG128: 0.9669696 | BH128: 0.9653888 | BI128: 0.963808 | BJ128: 0.9622272 | BK128: 0.9606464 | BL128: 0.9590656 | BM128: 0.9574848 | BN128: 0.955904 | BO128: 0.9543232 | BP128: 0.9527424 | BQ128: 0.9511616 | BR128: 0.9495808 | BS128: 0.948
S129: =S128+0.01 -> 6.05 | T129: 1.0268 | V129: 1.025104 | W129: 1.023408 | X129: 1.021712 | Y129: 1.020016 | Z129: 1.01832 | AA129: 1.016624 | AB129: 1.014928 | AC129: 1.013232 | AD129: 1.011536 | AE129: 1.00984 | AF129: 1.008144 | AG129: 1.006448 | AH129: 1.0079296 | AI129: 1.0062288 | AJ129: 1.00136 | AK129: 0.999664 | AL129: 0.997968 | AM129: 0.996272 | AN129: 0.994576 | AO129: 0.99288 | AP129: 0.991184 | AQ129: 0.989488 | AR129: 0.987792 | AS129: 0.986096 | AT129: 0.9844 | AU129: 0.982824 | AV129: 0.981248 | AW129: 0.979672 | AX129: 0.978096 | AY129: 0.97652 | AZ129: 0.974944 | BA129: 0.973368 | BB129: 0.971792 | BC129: 0.970216 | BD129: 0.96864 | BE129: 0.967064 | BF129: 0.965488 | BG129: 0.963912 | BH129: 0.962336 | BI129: 0.96076 | BJ129: 0.959184 | BK129: 0.957608 | BL129: 0.956032 | BM129: 0.954456 | BN129: 0.95288 | BO129: 0.951304 | BP129: 0.949728 | BQ129: 0.948152 | BR129: 0.946576 | BS129: 0.945
S130: =S129+0.01 -> 6.06 | T130: 1.02356 | V130: 1.0218688 | W130: 1.0201776 | X130: 1.0184864 | Y130: 1.0167952 | Z130: 1.015104 | AA130: 1.0134128 | AB130: 1.0117216 | AC130: 1.0100304 | AD130: 1.0083392 | AE130: 1.006648 | AF130: 1.0049568 | AG130: 1.0032656 | AH130: 1.004752 | AI130: 1.003056 | AJ130: 0.998192 | AK130: 0.9965008 | AL130: 0.9948096 | AM130: 0.9931184 | AN130: 0.9914272 | AO130: 0.989736 | AP130: 0.9880448 | AQ130: 0.9863536 | AR130: 0.9846624 | AS130: 0.9829712 | AT130: 0.98128 | AU130: 0.9797088 | AV130: 0.9781376 | AW130: 0.9765664 | AX130: 0.9749952 | AY130: 0.973424 | AZ130: 0.9718528 | BA130: 0.9702816 | BB130: 0.9687104 | BC130: 0.9671392 | BD130: 0.965568 | BE130: 0.9639968 | BF130: 0.9624256 | BG130: 0.9608544 | BH130: 0.9592832 | BI130: 0.957712 | BJ130: 0.9561408 | BK130: 0.9545696 | BL130: 0.9529984 | BM130: 0.9514272 | BN130: 0.949856 | BO130: 0.9482848 | BP130: 0.9467136 | BQ130: 0.9451424 | BR130: 0.9435712 | BS130: 0.942
S131: 6.07 | T131: 1.02032 | V131: 1.0186336 | W131: 1.0169472 | X131: 1.0152608 | Y131: 1.0135744 | Z131: 1.011888 | AA131: 1.0102016 | AB131: 1.0085152 | AC131: 1.0068288 | AD131: 1.0051424 | AE131: 1.003456 | AF131: 1.0017696 | AG131: 1.0000832 | AH131: 1.0015744 | AI131: 0.9998832 | AJ131: 0.995024 | AK131: 0.9933376 | AL131: 0.9916512 | AM131: 0.9899648 | AN131: 0.9882784 | AO131: 0.986592 | AP131: 0.9849056 | AQ131: 0.9832192 | AR131: 0.9815328 | AS131: 0.9798464 | AT131: 0.97816 | AU131: 0.9765936 | AV131: 0.9750272 | AW131: 0.9734608 | AX131: 0.9718944 | AY131: 0.970328 | AZ131: 0.9687616 | BA131: 0.9671952 | BB131: 0.9656288 | BC131: 0.9640624 | BD131: 0.962496 | BE131: 0.9609296 | BF131: 0.9593632 | BG131: 0.9577968 | BH131: 0.9562304 | BI131: 0.954664 | BJ131: 0.9530976 | BK131: 0.9515312 | BL131: 0.9499648 | BM131: 0.9483984 | BN131: 0.946832 | BO131: 0.9452656 | BP131: 0.9436992 | BQ131: 0.9421328 | BR131: 0.9405664 | BS131: 0.939
S132: 6.08 | T132: 1.01708 | V132: 1.0153984 | W132: 1.0137168 | X132: 1.0120352 | Y132: 1.0103536 | Z132: 1.008672 | AA132: 1.0069904 | AB132: 1.0053088 | AC132: 1.0036272 | AD132: 1.0019456 | AE132: 1.000264 | AF132: 0.9985824 | AG132: 0.9969008 | AH132: 0.9983968 | AI132: 0.9967104 | AJ132: 0.991856 | AK132: 0.9901744 | AL132: 0.9884928 | AM132: 0.9868112 | AN132: 0.9851296 | AO132: 0.983448 | AP132: 0.9817664 | AQ132: 0.9800848 | AR132: 0.9784032 | AS132: 0.9767216 | AT132: 0.97504 | AU132: 0.9734784 | AV132: 0.9719168 | AW132: 0.9703552 | AX132: 0.9687936 | AY132: 0.967232 | AZ132: 0.9656704 | BA132: 0.9641088 | BB132: 0.9625472 | BC132: 0.9609856 | BD132: 0.959424 | BE132: 0.9578624 | BF132: 0.9563008 | BG132: 0.9547392 | BH132: 0.9531776 | BI132: 0.951616 | BJ132: 0.9500544 | BK132: 0.9484928 | BL132: 0.9469312 | BM132: 0.9453696 | BN132: 0.943808 | BO132: 0.9422464 | BP132: 0.9406848 | BQ132: 0.9391232 | BR132: 0.9375616 | BS132: 0.936
S133: 6.09 | T133: 1.01384 | V133: 1.0121632 | W133: 1.0104864 | X133: 1.0088096 | Y133: 1.0071328 | Z133: 1.005456 | AA133: 1.0037792 | AB133: 1.0021024 | AC133: 1.0004256 | AD133: 0.9987488 | AE133: 0.997072 | AF133: 0.9953952 | AG133: 0.9937184 | AH133: 0.9952192 | AI133: 0.9935376 | AJ133: 0.988688 | AK133: 0.9870112 | AL133: 0.9853344 | AM133: 0.9836576 | AN133: 0.9819808 | AO133: 0.980304 | AP133: 0.9786272 | AQ133: 0.9769504 | AR133: 0.9752736 | AS133: 0.9735968 | AT133: 0.97192 | AU133: 0.9703632 | AV133: 0.9688064 | AW133: 0.9672496 | AX133: 0.9656928 | AY133: 0.964136 | AZ133: 0.9625792 | BA133: 0.9610224 | BB133: 0.9594656 | BC133: 0.9579088 | BD133: 0.956352 | BE133: 0.9547952 | BF133: 0.9532384 | BG133: 0.9516816 | BH133: 0.9501248 | BI133: 0.948568 | BJ133: 0.9470112 | BK133: 0.9454544 | BL133: 0.9438976 | BM133: 0.9423408 | BN133: 0.940784 | BO133: 0.9392272 | BP133: 0.9376704 | BQ133: 0.9361136 | BR133: 0.9345568 | BS133: 0.933
S134: 6.1 | T134: 1.0106 | V134: 1.008928 | W134: 1.007256 | X134: 1.005584 | Y134: 1.003912 | Z134: 1.00224 | AA134: 1.000568 | AB134: 0.998896 | AC134: 0.997224 | AD134: 0.995552 | AE134: 0.99388 | AF134: 0.992208 | AG134: 0.990536 | AH134: 0.9920416 | AI134: 0.9903648 | AJ134: 0.98552 | AK134: 0.983848 | AL134: 0.982176 | AM134: 0.980504 | AN134: 0.978832 | AO134: 0.97716 | AP134: 0.975488 | AQ134: 0.973816 | AR134: 0.972144 | AS134: 0.970472 | AT134: 0.9688 | AU134: 0.967248 | AV134: 0.965696 | AW134: 0.964144 | AX134: 0.962592 | AY134: 0.96104 | AZ134: 0.959488 | BA134: 0.957936 | BB134: 0.956384 | BC134: 0.954832 | BD134: 0.95328 | BE134: 0.951728 | BF134: 0.950176 | BG134: 0.948624 | BH134: 0.947072 | BI134: 0.94552 | BJ134: 0.943968 | BK134: 0.942416 | BL134: 0.940864 | BM134: 0.939312 | BN134: 0.93776 | BO134: 0.936208 | BP134: 0.934656 | BQ134: 0.933104 | BR134: 0.931552 | BS134: 0.93
S135: 6.11 | T135: 1.00736 | V135: 1.0056928 | W135: 1.0040256 | X135: 1.0023584 | Y135: 1.0006912 | Z135: 0.999024 | AA135: 0.9973568 | AB135: 0.9956896 | AC135: 0.9940224 | AD135: 0.9923552 | AE135: 0.990688 | AF135: 0.9890208 | AG135: 0.9873536 | AH135: 0.988864 | AI135: 0.987192 | AJ135: 0.982352 | AK135: 0.9806848 | AL135: 0.9790176 | AM135: 0.9773504 | AN135: 0.9756832 | AO135: 0.974016 | AP135: 0.9723488 | AQ135: 0.9706816 | AR135: 0.9690144 | AS135: 0.9673472 | AT135: 0.96568 | AU135: 0.9641328 | AV135: 0.9625856 | AW135: 0.9610384 | AX135: 0.9594912 | AY135: 0.957944 | AZ135: 0.9563968 | BA135: 0.9548496 | BB135: 0.9533024 | BC135: 0.9517552 | BD135: 0.950208 | BE135: 0.9486608 | BF135: 0.9471136 | BG135: 0.9455664 | BH135: 0.9440192 | BI135: 0.942472 | BJ135: 0.9409248 | BK135: 0.9393776 | BL135: 0.9378304 | BM135: 0.9362832 | BN135: 0.934736 | BO135: 0.9331888 | BP135: 0.9316416 | BQ135: 0.9300944 | BR135: 0.9285472 | BS135: 0.927
S136: 6.12 | T136: 1.00412 | V136: 1.0024576 | W136: 1.0007952 | X136: 0.9991328 | Y136: 0.9974704 | Z136: 0.995808 | AA136: 0.9941456 | AB136: 0.9924832 | AC136: 0.9908208 | AD136: 0.9891584 | AE136: 0.987496 | AF136: 0.9858336 | AG136: 0.9841712 | AH136: 0.9856864 | AI136: 0.9840192 | AJ136: 0.979184 | AK136: 0.9775216 | AL136: 0.9758592 | AM136: 0.9741968 | AN136: 0.9725344 | AO136: 0.970872 | AP136: 0.9692096 | AQ136: 0.9675472 | AR136: 0.9658848 | AS136: 0.9642224 | AT136: 0.96256 | AU136: 0.9610176 | AV136: 0.9594752 | AW136: 0.9579328 | AX136: 0.9563904 | AY136: 0.954848 | AZ136: 0.9533056 | BA136: 0.9517632 | BB136: 0.9502208 | BC136: 0.9486784 | BD136: 0.947136 | BE136: 0.9455936 | BF136: 0.9440512 | BG136: 0.9425088 | BH136: 0.9409664 | BI136: 0.939424 | BJ136: 0.9378816 | BK136: 0.9363392 | BL136: 0.9347968 | BM136: 0.9332544 | BN136: 0.931712 | BO136: 0.9301696 | BP136: 0.9286272 | BQ136: 0.9270848 | BR136: 0.9255424 | BS136: 0.924
S137: 6.13 | T137: 1.00088 | V137: 0.9992224 | W137: 0.9975648 | X137: 0.9959072 | Y137: 0.9942496 | Z137: 0.992592 | AA137: 0.9909344 | AB137: 0.9892768 | AC137: 0.9876192 | AD137: 0.9859616 | AE137: 0.984304 | AF137: 0.9826464 | AG137: 0.9809888 | AH137: 0.9825088 | AI137: 0.9808464 | AJ137: 0.976016 | AK137: 0.9743584 | AL137: 0.9727008 | AM137: 0.9710432 | AN137: 0.9693856 | AO137: 0.967728 | AP137: 0.9660704 | AQ137: 0.9644128 | AR137: 0.9627552 | AS137: 0.9610976 | AT137: 0.95944 | AU137: 0.9579024 | AV137: 0.9563648 | AW137: 0.9548272 | AX137: 0.9532896 | AY137: 0.951752 | AZ137: 0.9502144 | BA137: 0.9486768 | BB137: 0.9471392 | BC137: 0.9456016 | BD137: 0.944064 | BE137: 0.9425264 | BF137: 0.9409888 | BG137: 0.9394512 | BH137: 0.9379136 | BI137: 0.936376 | BJ137: 0.9348384 | BK137: 0.9333008 | BL137: 0.9317632 | BM137: 0.9302256 | BN137: 0.928688 | BO137: 0.9271504 | BP137: 0.9256128 | BQ137: 0.9240752 | BR137: 0.9225376 | BS137: 0.921
S138: =S137+0.01 -> 6.14 | T138: 0.99764 | V138: 0.9959872 | W138: 0.9943344 | X138: 0.9926816 | Y138: 0.9910288 | Z138: 0.989376 | AA138: 0.9877232 | AB138: 0.9860704 | AC138: 0.9844176 | AD138: 0.9827648 | AE138: 0.981112 | AF138: 0.9794592 | AG138: 0.9778064 | AH138: 0.9793312 | AI138: 0.9776736 | AJ138: 0.972848 | AK138: 0.9711952 | AL138: 0.9695424 | AM138: 0.9678896 | AN138: 0.9662368 | AO138: 0.964584 | AP138: 0.9629312 | AQ138: 0.9612784 | AR138: 0.9596256 | AS138: 0.9579728 | AT138: 0.95632 | AU138: 0.9547872 | AV138: 0.9532544 | AW138: 0.9517216 | AX138: 0.9501888 | AY138: 0.948656 | AZ138: 0.9471232 | BA138: 0.9455904 | BB138: 0.9440576 | BC138: 0.9425248 | BD138: 0.940992 | BE138: 0.9394592 | BF138: 0.9379264 | BG138: 0.9363936 | BH138: 0.9348608 | BI138: 0.933328 | BJ138: 0.9317952 | BK138: 0.9302624 | BL138: 0.9287296 | BM138: 0.9271968 | BN138: 0.925664 | BO138: 0.9241312 | BP138: 0.9225984 | BQ138: 0.9210656 | BR138: 0.9195328 | BS138: 0.918
S139: =S138+0.01 -> 6.15 | T139: 0.9944 | V139: 0.992752 | W139: 0.991104 | X139: 0.989456 | Y139: 0.987808 | Z139: 0.98616 | AA139: 0.984512 | AB139: 0.982864 | AC139: 0.981216 | AD139: 0.979568 | AE139: 0.97792 | AF139: 0.976272 | AG139: 0.974624 | AH139: 0.9761536 | AI139: 0.9745008 | AJ139: 0.96968 | AK139: 0.968032 | AL139: 0.966384 | AM139: 0.964736 | AN139: 0.963088 | AO139: 0.96144 | AP139: 0.959792 | AQ139: 0.958144 | AR139: 0.956496 | AS139: 0.954848 | AT139: 0.9532 | AU139: 0.951672 | AV139: 0.950144 | AW139: 0.948616 | AX139: 0.947088 | AY139: 0.94556 | AZ139: 0.944032 | BA139: 0.942504 | BB139: 0.940976 | BC139: 0.939448 | BD139: 0.93792 | BE139: 0.936392 | BF139: 0.934864 | BG139: 0.933336 | BH139: 0.931808 | BI139: 0.93028 | BJ139: 0.928752 | BK139: 0.927224 | BL139: 0.925696 | BM139: 0.924168 | BN139: 0.92264 | BO139: 0.921112 | BP139: 0.919584 | BQ139: 0.918056 | BR139: 0.916528 | BS139: 0.915
S140: 6.16 | T140: 0.99116 | V140: 0.9895168 | W140: 0.9878736 | X140: 0.9862304 | Y140: 0.9845872 | Z140: 0.982944 | AA140: 0.9813008 | AB140: 0.9796576 | AC140: 0.9780144 | AD140: 0.9763712 | AE140: 0.974728 | AF140: 0.9730848 | AG140: 0.9714416 | AH140: 0.972976 | AI140: 0.971328 | AJ140: 0.966512 | AK140: 0.9648688 | AL140: 0.9632256 | AM140: 0.9615824 | AN140: 0.9599392 | AO140: 0.958296 | AP140: 0.9566528 | AQ140: 0.9550096 | AR140: 0.9533664 | AS140: 0.9517232 | AT140: 0.95008 | AU140: 0.9485568 | AV140: 0.9470336 | AW140: 0.9455104 | AX140: 0.9439872 | AY140: 0.942464 | AZ140: 0.9409408 | BA140: 0.9394176 | BB140: 0.9378944 | BC140: 0.9363712 | BD140: 0.934848 | BE140: 0.9333248 | BF140: 0.9318016 | BG140: 0.9302784 | BH140: 0.9287552 | BI140: 0.927232 | BJ140: 0.9257088 | BK140: 0.9241856 | BL140: 0.9226624 | BM140: 0.9211392 | BN140: 0.919616 | BO140: 0.9180928 | BP140: 0.9165696 | BQ140: 0.9150464 | BR140: 0.9135232 | BS140: 0.912
S141: 6.17 | T141: 0.98792 | V141: 0.9862816 | W141: 0.9846432 | X141: 0.9830048 | Y141: 0.9813664 | Z141: 0.979728 | AA141: 0.9780896 | AB141: 0.9764512 | AC141: 0.9748128 | AD141: 0.9731744 | AE141: 0.971536 | AF141: 0.9698976 | AG141: 0.9682592 | AH141: 0.9697984 | AI141: 0.9681552 | AJ141: 0.963344 | AK141: 0.9617056 | AL141: 0.9600672 | AM141: 0.9584288 | AN141: 0.9567904 | AO141: 0.955152 | AP141: 0.9535136 | AQ141: 0.9518752 | AR141: 0.9502368 | AS141: 0.9485984 | AT141: 0.94696 | AU141: 0.9454416 | AV141: 0.9439232 | AW141: 0.9424048 | AX141: 0.9408864 | AY141: 0.939368 | AZ141: 0.9378496 | BA141: 0.9363312 | BB141: 0.9348128 | BC141: 0.9332944 | BD141: 0.931776 | BE141: 0.9302576 | BF141: 0.9287392 | BG141: 0.9272208 | BH141: 0.9257024 | BI141: 0.924184 | BJ141: 0.9226656 | BK141: 0.9211472 | BL141: 0.9196288 | BM141: 0.9181104 | BN141: 0.916592 | BO141: 0.9150736 | BP141: 0.9135552 | BQ141: 0.9120368 | BR141: 0.9105184 | BS141: 0.909
S142: 6.18 | T142: 0.98468 | V142: 0.9830464 | W142: 0.9814128 | X142: 0.9797792 | Y142: 0.9781456 | Z142: 0.976512 | AA142: 0.9748784 | AB142: 0.9732448 | AC142: 0.9716112 | AD142: 0.9699776 | AE142: 0.968344 | AF142: 0.9667104 | AG142: 0.9650768 | AH142: 0.9666208 | AI142: 0.9649824 | AJ142: 0.960176 | AK142: 0.9585424 | AL142: 0.9569088 | AM142: 0.9552752 | AN142: 0.9536416 | AO142: 0.952008 | AP142: 0.9503744 | AQ142: 0.9487408 | AR142: 0.9471072 | AS142: 0.9454736 | AT142: 0.94384 | AU142: 0.9423264 | AV142: 0.9408128 | AW142: 0.9392992 | AX142: 0.9377856 | AY142: 0.936272 | AZ142: 0.9347584 | BA142: 0.9332448 | BB142: 0.9317312 | BC142: 0.9302176 | BD142: 0.928704 | BE142: 0.9271904 | BF142: 0.9256768 | BG142: 0.9241632 | BH142: 0.9226496 | BI142: 0.921136 | BJ142: 0.9196224 | BK142: 0.9181088 | BL142: 0.9165952 | BM142: 0.9150816 | BN142: 0.913568 | BO142: 0.9120544 | BP142: 0.9105408 | BQ142: 0.9090272 | BR142: 0.9075136 | BS142: 0.906
S143: 6.19 | T143: 0.98144 | V143: 0.9798112 | W143: 0.9781824 | X143: 0.9765536 | Y143: 0.9749248 | Z143: 0.973296 | AA143: 0.9716672 | AB143: 0.9700384 | AC143: 0.9684096 | AD143: 0.9667808 | AE143: 0.965152 | AF143: 0.9635232 | AG143: 0.9618944 | AH143: 0.9634432 | AI143: 0.9618096 | AJ143: 0.957008 | AK143: 0.9553792 | AL143: 0.9537504 | AM143: 0.9521216 | AN143: 0.9504928 | AO143: 0.948864 | AP143: 0.9472352 | AQ143: 0.9456064 | AR143: 0.9439776 | AS143: 0.9423488 | AT143: 0.94072 | AU143: 0.9392112 | AV143: 0.9377024 | AW143: 0.9361936 | AX143: 0.9346848 | AY143: 0.933176 | AZ143: 0.9316672 | BA143: 0.9301584 | BB143: 0.9286496 | BC143: 0.9271408 | BD143: 0.925632 | BE143: 0.9241232 | BF143: 0.9226144 | BG143: 0.9211056 | BH143: 0.9195968 | BI143: 0.918088 | BJ143: 0.9165792 | BK143: 0.9150704 | BL143: 0.9135616 | BM143: 0.9120528 | BN143: 0.910544 | BO143: 0.9090352 | BP143: 0.9075264 | BQ143: 0.9060176 | BR143: 0.9045088 | BS143: 0.903
S144: 6.2 | T144: 0.9782 | V144: 0.976576 | W144: 0.974952 | X144: 0.973328 | Y144: 0.971704 | Z144: 0.97008 | AA144: 0.968456 | AB144: 0.966832 | AC144: 0.965208 | AD144: 0.963584 | AE144: 0.96196 | AF144: 0.960336 | AG144: 0.958712 | AH144: 0.9602656 | AI144: 0.9586368 | AJ144: 0.95384 | AK144: 0.952216 | AL144: 0.950592 | AM144: 0.948968 | AN144: 0.947344 | AO144: 0.94572 | AP144: 0.944096 | AQ144: 0.942472 | AR144: 0.940848 | AS144: 0.939224 | AT144: 0.9376 | AU144: 0.936096 | AV144: 0.934592 | AW144: 0.933088 | AX144: 0.931584 | AY144: 0.93008 | AZ144: 0.928576 | BA144: 0.927072 | BB144: 0.925568 | BC144: 0.924064 | BD144: 0.92256 | BE144: 0.921056 | BF144: 0.919552 | BG144: 0.918048 | BH144: 0.916544 | BI144: 0.91504 | BJ144: 0.913536 | BK144: 0.912032 | BL144: 0.910528 | BM144: 0.909024 | BN144: 0.90752 | BO144: 0.906016 | BP144: 0.904512 | BQ144: 0.903008 | BR144: 0.901504 | BS144: 0.9
S145: 6.21 | T145: 0.97496 | V145: 0.9733408 | W145: 0.9717216 | X145: 0.9701024 | Y145: 0.9684832 | Z145: 0.966864 | AA145: 0.9652448 | AB145: 0.9636256 | AC145: 0.9620064 | AD145: 0.9603872 | AE145: 0.958768 | AF145: 0.9571488 | AG145: 0.9555296 | AH145: 0.957088 | AI145: 0.955464 | AJ145: 0.950672 | AK145: 0.9490528 | AL145: 0.9474336 | AM145: 0.9458144 | AN145: 0.9441952 | AO145: 0.942576 | AP145: 0.9409568 | AQ145: 0.9393376 | AR145: 0.9377184 | AS145: 0.9360992 | AT145: 0.93448 | AU145: 0.9329808 | AV145: 0.9314816 | AW145: 0.9299824 | AX145: 0.9284832 | AY145: 0.926984 | AZ145: 0.9254848 | BA145: 0.9239856 | BB145: 0.9224864 | BC145: 0.9209872 | BD145: 0.919488 | BE145: 0.9179888 | BF145: 0.9164896 | BG145: 0.9149904 | BH145: 0.9134912 | BI145: 0.911992 | BJ145: 0.9104928 | BK145: 0.9089936 | BL145: 0.9074944 | BM145: 0.9059952 | BN145: 0.904496 | BO145: 0.9029968 | BP145: 0.9014976 | BQ145: 0.8999984 | BR145: 0.8984992 | BS145: 0.897
S146: 6.22 | T146: 0.97172 | V146: 0.9701056 | W146: 0.9684912 | X146: 0.9668768 | Y146: 0.9652624 | Z146: 0.963648 | AA146: 0.9620336 | AB146: 0.9604192 | AC146: 0.9588048 | AD146: 0.9571904 | AE146: 0.955576 | AF146: 0.9539616 | AG146: 0.9523472 | AH146: 0.9539104 | AI146: 0.9522912 | AJ146: 0.947504 | AK146: 0.9458896 | AL146: 0.9442752 | AM146: 0.9426608 | AN146: 0.9410464 | AO146: 0.939432 | AP146: 0.9378176 | AQ146: 0.9362032 | AR146: 0.9345888 | AS146: 0.9329744 | AT146: 0.93136 | AU146: 0.9298656 | AV146: 0.9283712 | AW146: 0.9268768 | AX146: 0.9253824 | AY146: 0.923888 | AZ146: 0.9223936 | BA146: 0.9208992 | BB146: 0.9194048 | BC146: 0.9179104 | BD146: 0.916416 | BE146: 0.9149216 | BF146: 0.9134272 | BG146: 0.9119328 | BH146: 0.9104384 | BI146: 0.908944 | BJ146: 0.9074496 | BK146: 0.9059552 | BL146: 0.9044608 | BM146: 0.9029664 | BN146: 0.901472 | BO146: 0.8999776 | BP146: 0.8984832 | BQ146: 0.8969888 | BR146: 0.8954944 | BS146: 0.894
S147: =S146+0.01 -> 6.23 | T147: 0.96848 | V147: 0.9668704 | W147: 0.9652608 | X147: 0.9636512 | Y147: 0.9620416 | Z147: 0.960432 | AA147: 0.9588224 | AB147: 0.9572128 | AC147: 0.9556032 | AD147: 0.9539936 | AE147: 0.952384 | AF147: 0.9507744 | AG147: 0.9491648 | AH147: 0.9507328 | AI147: 0.9491184 | AJ147: 0.944336 | AK147: 0.9427264 | AL147: 0.9411168 | AM147: 0.9395072 | AN147: 0.9378976 | AO147: 0.936288 | AP147: 0.9346784 | AQ147: 0.9330688 | AR147: 0.9314592 | AS147: 0.9298496 | AT147: 0.92824 | AU147: 0.9267504 | AV147: 0.9252608 | AW147: 0.9237712 | AX147: 0.9222816 | AY147: 0.920792 | AZ147: 0.9193024 | BA147: 0.9178128 | BB147: 0.9163232 | BC147: 0.9148336 | BD147: 0.913344 | BE147: 0.9118544 | BF147: 0.9103648 | BG147: 0.9088752 | BH147: 0.9073856 | BI147: 0.905896 | BJ147: 0.9044064 | BK147: 0.9029168 | BL147: 0.9014272 | BM147: 0.8999376 | BN147: 0.898448 | BO147: 0.8969584 | BP147: 0.8954688 | BQ147: 0.8939792 | BR147: 0.8924896 | BS147: 0.891
S148: =S147+0.01 -> 6.24 | T148: 0.96524 | V148: 0.9636352 | W148: 0.9620304 | X148: 0.9604256 | Y148: 0.9588208 | Z148: 0.957216 | AA148: 0.9556112 | AB148: 0.9540064 | AC148: 0.9524016 | AD148: 0.9507968 | AE148: 0.949192 | AF148: 0.9475872 | AG148: 0.9459824 | AH148: 0.9475552 | AI148: 0.9459456 | AJ148: 0.941168 | AK148: 0.9395632 | AL148: 0.9379584 | AM148: 0.9363536 | AN148: 0.9347488 | AO148: 0.933144 | AP148: 0.9315392 | AQ148: 0.9299344 | AR148: 0.9283296 | AS148: 0.9267248 | AT148: 0.92512 | AU148: 0.9236352 | AV148: 0.9221504 | AW148: 0.9206656 | AX148: 0.9191808 | AY148: 0.917696 | AZ148: 0.9162112 | BA148: 0.9147264 | BB148: 0.9132416 | BC148: 0.9117568 | BD148: 0.910272 | BE148: 0.9087872 | BF148: 0.9073024 | BG148: 0.9058176 | BH148: 0.9043328 | BI148: 0.902848 | BJ148: 0.9013632 | BK148: 0.8998784 | BL148: 0.8983936 | BM148: 0.8969088 | BN148: 0.895424 | BO148: 0.8939392 | BP148: 0.8924544 | BQ148: 0.8909696 | BR148: 0.8894848 | BS148: 0.888
S149: 6.25 | T149: =V149+(0.04/25) -> 0.962 | V149: =W149+(0.04/25) -> 0.9604 | W149: 0.9588 | X149: 0.9572 | Y149: 0.9556 | Z149: 0.954 | AA149: 0.9524 | AB149: 0.9508 | AC149: 0.9492 | AD149: 0.9476 | AE149: 0.946 | AF149: 0.9444 | AG149: =AH150+(0.04/25) -> 0.9428 | AH149: 0.9443776 | AI149: 0.9427728 | AJ149: 0.938 | AK149: 0.9364 | AL149: 0.9348 | AM149: 0.9332 | AN149: 0.9316 | AO149: 0.93 | AP149: 0.9284 | AQ149: 0.9268 | AR149: 0.9252 | AS149: =AT149+(0.04/25) -> 0.9236 | AT149: 0.922 | AU149: =AT149-(0.037/25) -> 0.92052 | AV149: =AU149-(0.037/25) -> 0.91904 | AW149: 0.91756 | AX149: 0.91608 | AY149: 0.9146 | AZ149: 0.91312 | BA149: 0.91164 | BB149: 0.91016 | BC149: 0.90868 | BD149: 0.9072 | BE149: 0.90572 | BF149: 0.90424 | BG149: 0.90276 | BH149: 0.90128 | BI149: 0.8998 | BJ149: 0.89832 | BK149: 0.89684 | BL149: 0.89536 | BM149: 0.89388 | BN149: 0.8924 | BO149: 0.89092 | BP149: 0.88944 | BQ149: 0.88796 | BR149: 0.88648 | BS149: 0.885
AH150: 0.9412 | AI150: =AJ149+(0.04/25) -> 0.9396

Sheet EXAMPLE
K2: Tollway Testing Form (TTF) 010
D3: Illinois Tollway | K3: 12/01/2020
D4: Concrete Maturity - Strength Development
D5: Using Compressive Strength
J6: Report Date: | K6: 2020-07-08 | AA6: Y | AB6: Cone
B7: Project No.: | C7: I-20-2020 | F7: Tester: | G7: John Doe | J7: Casting Date: | K7: 2020-06-24 | AA7: N | AB7: Cone/Split
B8: Location: | C8: I-294, MP 20.2 - 22.2 | F8: Contractor: | G8: Smooth Paving | J8: Casting Time: | K8: 08:00:00 | AB8: Cone/Shear
B9: Curve #: | C9: 1 | F9: Engineer: | G9: Jane Smith | J9: Opening Strength, psi | K9: 2500 | AB9: Shear
AB10: Columnar
B11: Beam No. | C11: Age at Break (hours or days) | D11: Ave. Diameter "D" (in) | E11: Ave. Length "L" (in) | F11: Total Test Load (lbs) | G11: Failure Type | H11: Compressive Strength (psi) | I11: T-TF Sensor 1 (F-Hours) | J11: T-TF Sensor 2 (F-Hours) | K11: Ave. T-TF (F-Hours) | N11: Age | O11: Average TTF | P11: Average strength | R11: ln(TTF)
B12: 1 | C12: 1 | D12: 5.98 | E12: 12 | F12: 30215 | G12: Cone | H12: =IF(F12="","",MROUND(F12/((D12/2)^2*PI()),5)) -> 1075 | I12: 1152 | J12: 1180 | N12: =C12 -> 1 | O12: =AVERAGE(K13:K14) -> 1165 | P12: =AVERAGE(H12:H14) -> 1113.333333 | R12: =LN(O12) -> 7.060476366
B13: 2 | D13: 6.01 | E13: 12.02 | F13: 32145 | G13: Cone | H13: =IF(F13="","",MROUND(F13/((D13/2)^2*PI()),5)) -> 1135 | K13: =IF(I12="","",MROUND(AVERAGE(I12:J12),5)) -> 1165 | N13: =C15 -> 2 | O13: =AVERAGE(K16:K17) -> 2260 | P13: =AVERAGE(H15:H17) -> 1906.666667 | R13: =LN(O13) -> 7.723120092 | Z13: Solver | AH13: Maturity | AI13: Strength
B14: 3 | D14: 6 | E14: 12 | F14: 31895 | G14: Cone | H14: 1130 | N14: =C18 -> 3 | O14: =AVERAGE(K19:K20) -> 3555 | P14: =AVERAGE(H18:H20) -> 2863.333333 | R14: =LN(O14) -> 8.176110342 | Z14: Maturity | AA14: Compressive Strength | AB14: Calculated Strength | AC14: (calc-meas)^2 | AD14: (calc-ave)^2 | AE14: (meas-ave)^2 | AH14: 1 | AI14: =$AA$35*EXP(-(($AA$36/AH14)^$AA$37)) -> 1.923057017e-24
B15: 4 | C15: 2 | D15: 5.99 | E15: 12 | F15: 53157 | G15: Cone | H15: =IF(F15="","",MROUND(F15/((D15/2)^2*PI()),5)) -> 1885 | I15: 2304 | J15: 2219 | N15: =C21 -> 7 | O15: =AVERAGE(K22:K23) -> 8030 | P15: =AVERAGE(H21:H23) -> 4355 | R15: =LN(O15) -> 8.990939807 | Z15: =K13 -> 1165 | AA15: =IF(H12<>"",H12,"x") -> 1075 | AB15: =IF(AA15<>"",$AA$35*EXP(-(($AA$36/Z15)^$AA$37)),NA()) -> 1069.244999 | AC15: =(AB15-AA15)^2 -> 33.12003311 | AD15: =(AB15-$AA$31)^2 -> 4574272.953 | AE15: =(AA15-$AA$31)^2 -> 4549689 | AH15: 100 | AI15: =$AA$35*EXP(-(($AA$36/AH15)^$AA$37)) -> 6.648007168
B16: 5 | D16: 6.01 | E16: 12.01 | F16: 53440 | G16: Cone | H16: 1885 | K16: =IF(I15="","",MROUND(AVERAGE(I15:J15),5)) -> 2260 | N16: =C24 -> 14 | O16: =AVERAGE(K25:K26) -> 17125 | P16: =AVERAGE(H24:H26) -> 5801.666667 | R16: =LN(O16) -> 9.748294663 | Z16: =K13 -> 1165 | AA16: 1135 | AB16: =IF(AA16<>"",$AA$35*EXP(-(($AA$36/Z16)^$AA$37)),NA()) -> 1069.244999 | AC16: =(AB16-AA16)^2 -> 4323.720118 | AD16: =(AB16-$AA$31)^2 -> 4574272.953 | AE16: =(AA16-$AA$31)^2 -> 4297329 | AH16: 200 | AI16: 52.10740656
B17: 6 | D17: 6.02 | E17: 12.03 | F17: 55555 | G17: Cone/Split | H17: 1950 | Z17: =K13 -> 1165 | AA17: 1130 | AB17: 1069.244999 | AC17: 3691.170111 | AD17: 4574272.953 | AE17: 4318084 | AH17: 300 | AI17: 131.9707834
B18: 7 | C18: 3 | D18: 6 | E18: 12.01 | F18: 82555 | G18: Cone | H18: 2920 | I18: 3456 | J18: 3655 | P18: linest | Q18: =LINEST(P12:P16,R12:R16,TRUE,FALSE) -> 1783.338191 | R18: -11664.6629 | Z18: =K16 -> 2260 | AA18: 1885 | AB18: 2007.012307 | AC18: 14887.00304 | AD18: 1442371.439 | AE18: 1750329 | AH18: 400 | AI18: 231.1304888
B19: 8 | D19: 6 | E19: 12 | F19: 79585 | G19: Cone | H19: 2815 | K19: =IF(I18="","",MROUND(AVERAGE(I18:J18),5)) -> 3555 | Q19: ="f'c = " & ROUND(Q18,1) & " * ln(TTF) + " & ROUND(R18,1) -> f'c = 1783.3 * ln(TTF) + -11664.7 | Z19: =K16 -> 2260 | AA19: 1885 | AB19: 2007.012307 | AC19: 14887.00304 | AD19: 1442371.439 | AE19: 1750329 | AH19: 500 | AI19: 339.909487
B20: 9 | D20: 6.01 | E20: 12 | F20: 80985 | G20: Shear | H20: 2855 | Z20: =K16 -> 2260 | AA20: 1950 | AB20: 2007.012307 | AC20: 3250.403141 | AD20: 1442371.439 | AE20: 1582564 | AH20: 600 | AI20: 452.7363858
B21: 10 | C21: 7 | D21: 5.99 | E21: 12.02 | F21: 125055 | G21: Cone | H21: 4440 | I21: 8064 | J21: 7996 | Z21: =K19 -> 3555 | AA21: 2920 | AB21: 2794.63178 | AC21: 15717.19063 | AD21: 170873.2854 | AE21: 82944 | AH21: 700 | AI21: 566.4136177
B22: 11 | D22: 5.99 | E22: 12.03 | F22: 120950 | G22: Cone | H22: 4290 | K22: =IF(I21="","",MROUND(AVERAGE(I21:J21),5)) -> 8030 | Z22: =K19 -> 3555 | AA22: 2815 | AB22: 2794.63178 | AC22: 414.8643926 | AD22: 170873.2854 | AE22: 154449 | AH22: 800 | AI22: 679.0941129
B23: 12 | D23: 6.01 | E23: 12 | F23: 122955 | G23: Columnar | H23: 4335 | Z23: =K19 -> 3555 | AA23: 2855 | AB23: 2794.63178 | AC23: 3644.322006 | AD23: 170873.2854 | AE23: 124609 | AH23: 900 | AI23: 789.7145431
B24: 13 | C24: 14 | D24: 6.02 | E24: 12.01 | F24: 165525 | G24: Cone | H24: 5815 | I24: 17035 | J24: 17211 | Z24: =K22 -> 8030 | AA24: 4440 | AB24: 4359.980458 | AC24: 6403.127148 | AD24: 1327058.975 | AE24: 1517824 | AH24: 1000 | AI24: 897.6773644
B25: 14 | D25: 6.01 | E25: 12.01 | F25: 167890 | G25: Cone | H25: 5920 | K25: =IF(I24="","",MROUND(AVERAGE(I24:J24),5)) -> 17125 | Z25: =K22 -> 8030 | AA25: 4290 | AB25: 4359.980458 | AC25: 4897.264461 | AD25: 1327058.975 | AE25: 1170724 | AH25: 1100 | AI25: 1002.667488
B26: 15 | D26: 6 | E26: 11.99 | F26: 160255 | G26: Cone | H26: 5670 | Z26: =K22 -> 8030 | AA26: 4335 | AB26: 4359.980458 | AC26: 624.0232674 | AD26: 1327058.975 | AE26: 1270129 | AH26: 1200 | AI26: 1104.543559
Z27: =K25 -> 17125 | AA27: 5815 | AB27: 5804.427502 | AC27: 111.7777143 | AD27: 6741435.773 | AE27: 6796449 | AH27: 1300 | AI27: 1203.271837
Z28: =K25 -> 17125 | AA28: 5920 | AB28: 5804.427502 | AC28: 13357.0023 | AD28: 6741435.773 | AE28: 7354944 | AH28: 1400 | AI28: 1298.885111
Z29: =K25 -> 17125 | AA29: 5670 | AB29: 5804.427502 | AC29: 18070.75329 | AD29: 6741435.773 | AE29: 6061444 | AH29: 1500 | AI29: 1391.456741
AC30: 0 | AH30: 1600 | AI30: 1481.084025
AA31: =AVERAGE(AA15:AA29) -> 3208 | AC31: =SUMIFS(AC15:AC29,AA15:AA29,"<>x") -> 104312.7447 | AD31: =SUMIFS(AD15:AD29,AA15:AA29,"<>x") -> 42768037.28 | AE31: =SUMIFS(AE15:AE29,AA15:AA29,"<>x") -> 42781840 | AH31: 1700 | AI31: 1567.877456
AH32: 1800 | AI32: 1651.95376
AH33: 1900 | AI33: 1733.431374
Z34: 0 | AA34: 0 | AD34: R2 | AE34: =1-AC31/AE31 -> 0.9975617518 | AH34: 2000 | AI34: 1812.427555
Z35: Su | AA35: 11394.48147 | AH35: 2100 | AI35: 1889.056551
Z36: t | AA36: 7368.654987 | AH36: 2200 | AI36: 1963.428488
Z37: a | AA37: 0.4669388552 | AH37: 2300 | AI37: 2035.648743
AH38: 2400 | AI38: 2105.817631
AA39: =AA36*(LN(AA35/E48))^(-1/AA37) ->  | AH39: 2500 | AI39: 2174.030311
AH40: 2600 | AI40: 2240.376824
AH41: 2700 | AI41: 2304.942231
AH42: 2800 | AI42: 2367.8068
AH43: 2900 | AI43: 2429.046229
AH44: 3000 | AI44: 2488.731886
AH45: 3500 | AI45: 2766.078782
H46: Su= | I46: =ROUND(AA35,2) -> 11394.48 | AH46: 4000 | AI46: 3013.208229
B47: Required T-TF for Opening | E47: =IF(K9="","",ROUND(AA36*(LN(AA35/K9))^(-1/AA37),-1)) -> 3020 | F47: F-hours | H47: t= | I47: =ROUND(AA36,2) -> 7368.65 | AH47: 4500 | AI47: 3235.500299
H48: a= | I48: =ROUND(AA37,3) -> 0.467 | AH48: 5000 | AI48: 3437.075469
AH49: 5500 | AI49: 3621.143722
B50: Comments: | AH50: 6000 | AI50: 3790.246568
AH51: 6500 | AI51: 3946.426279
AH52: 7000 | AI52: 4091.346018
B53: Mix Information | AH53: 7500 | AI53: 4226.37654
B54: Mix No. | E54: 2020 | G54: Certified Contractor Rep: | AH54: 8000 | AI54: 4352.659837
B55: Truck No. | E55: 99 | AH55: 8500 | AI55: 4471.156568
B56: Air, % | E56: 7.8 | AH56: 9000 | AI56: 4582.681961
B57: Slump, in. | E57: 2.5 | G57: Maturity Curve Reviewed by: | AH57: 9500 | AI57: 4687.933327
B58: W/C Ratio | E58: 0.39 | AH58: 10000 | AI58: 4787.511436
AH59: 10500 | AI59: 4881.937297
AH60: 11000 | AI60: 4971.665482
AH61: 11500 | AI61: 5057.0948
AH62: 12000 | AI62: 5138.576928
AH63: 12500 | AI63: 5216.423454
AH64: 13000 | AI64: 5290.911653
AH65: 13500 | AI65: 5362.289279
AH66: 14000 | AI66: 5430.778545
AH67: 14500 | AI67: 5496.579468
AH68: 15000 | AI68: 5559.872684
AH69: 15500 | AI69: 5620.821835
AH70: 16000 | AI70: 5679.575603
AH71: 16500 | AI71: 5736.269451
AH72: 17000 | AI72: 5791.027121
AH73: 17500 | AI73: 5843.961925
AH74: 18000 | AI74: 5895.177867
AH75: 18500 | AI75: 5944.770619
AH76: 19000 | AI76: 5992.828373
AH77: 19500 | AI77: 6039.432587
AH78: 20000 | AI78: 6084.658644
AH79: 20500 | AI79: =$AA$35*EXP(-(($AA$36/AH79)^$AA$37)) -> 6128.576428
AH80: 21000 | AI80: 6171.250841
AH81: 21500 | AI81: 6212.742254
AH82: 22000 | AI82: 6253.106913
AH83: 22500 | AI83: 6292.3973
AH84: 23000 | AI84: 6330.662456
AH85: 23500 | AI85: 6367.948268
AH86: 24000 | AI86: 6404.297732
AH87: 24500 | AI87: 6439.751183
AH88: 25000 | AI88: 6474.346509
T98: 5.75 | V98: =T98+0.01 -> 5.76 | W98: =V98+0.01 -> 5.77 | X98: =W98+0.01 -> 5.78 | Y98: 5.79 | Z98: 5.8 | AA98: 5.81 | AB98: 5.82 | AC98: 5.83 | AD98: 5.84 | AE98: 5.85 | AF98: 5.86 | AG98: 5.87 | AJ98: =AI99+0.01 -> 5.9 | AK98: 5.91 | AL98: 5.92 | AM98: 5.93 | AN98: =AM98+0.01 -> 5.94 | AO98: 5.95 | AP98: 5.96 | AQ98: 5.97 | AR98: 5.98 | AS98: 5.99 | AT98: 6 | AU98: 6.01 | AV98: 6.02 | AW98: 6.03 | AX98: 6.04 | AY98: 6.05 | AZ98: 6.06 | BA98: 6.07 | BB98: 6.08 | BC98: =BB98+0.01 -> 6.09 | BD98: =BC98+0.01 -> 6.1 | BE98: 6.11 | BF98: 6.12 | BG98: 6.13 | BH98: 6.14 | BI98: 6.15 | BJ98: 6.16 | BK98: 6.17 | BL98: =BK98+0.01 -> 6.18 | BM98: 6.19 | BN98: 6.2 | BO98: 6.21 | BP98: 6.22 | BQ98: 6.23 | BR98: 6.24 | BS98: =BR98+0.01 -> 6.25
S99: 5.75 | T99: =V99+(0.047/25) -> 1.136 | V99: =W99+(0.047/25) -> 1.13412 | W99: 1.13224 | X99: 1.13036 | Y99: 1.12848 | Z99: 1.1266 | AA99: 1.12472 | AB99: 1.12284 | AC99: 1.12096 | AD99: 1.11908 | AE99: 1.1172 | AF99: 1.11532 | AG99: =AH100+(0.047/25) -> 1.11344 | AH99: =AG98+0.01 -> 5.88 | AI99: =AH99+0.01 -> 5.89 | AJ99: 1.1078 | AK99: 1.10592 | AL99: =AM99+(0.047/25) -> 1.10404 | AM99: 1.10216 | AN99: 1.10028 | AO99: 1.0984 | AP99: 1.09652 | AQ99: 1.09464 | AR99: 1.09276 | AS99: =AT99+(0.047/25) -> 1.09088 | AT99: =AT100+(0.089/25) -> 1.089 | AU99: =AT99-(0.044/25) -> 1.08724 | AV99: =AU99-(0.044/25) -> 1.08548 | AW99: 1.08372 | AX99: 1.08196 | AY99: 1.0802 | AZ99: 1.07844 | BA99: 1.07668 | BB99: 1.07492 | BC99: 1.07316 | BD99: 1.0714 | BE99: 1.06964 | BF99: 1.06788 | BG99: 1.06612 | BH99: 1.06436 | BI99: 1.0626 | BJ99: 1.06084 | BK99: 1.05908 | BL99: 1.05732 | BM99: 1.05556 | BN99: 1.0538 | BO99: 1.05204 | BP99: 1.05028 | BQ99: 1.04852 | BR99: 1.04676 | BS99: 1.045
S100: =S99+0.01 -> 5.76 | T100: =T99-(($T$99-$T$124)/25) -> 1.13228 | V100: =V99-(($V$99-$V$124)/25) -> 1.1304064 | W100: =W99-(($W$99-$W$124)/25) -> 1.1285328 | X100: =X99-(($X$99-$X$124)/25) -> 1.1266592 | Y100: =Y99-(($Y$99-$Y$124)/25) -> 1.1247856 | Z100: =Z99-(($Z$99-$Z$124)/25) -> 1.122912 | AA100: =AA99-(($AA$99-$AA$124)/25) -> 1.1210384 | AB100: =AB99-(($AB$99-$AB$124)/25) -> 1.1191648 | AC100: =AC99-(($AC$99-$AC$124)/25) -> 1.1172912 | AD100: =AD99-(($AD$99-$AD$124)/25) -> 1.1154176 | AE100: =AE99-(($AE$99-$AE$124)/25) -> 1.113544 | AF100: =AF99-(($AF$99-$AF$124)/25) -> 1.1116704 | AG100: =AG99-(($AG$99-$AG$124)/25) -> 1.1097968 | AH100: 1.11156 | AI100: =AJ99+(0.047/25) -> 1.10968 | AJ100: =AJ99-(($AJ$99-$AJ$124)/25) -> 1.104176 | AK100: =AK99-(($AK$99-$AK$124)/25) -> 1.1023024 | AL100: =AL99-(($AL$99-$AL$124)/25) -> 1.1004288 | AM100: =AM99-(($AM$99-$AM$124)/25) -> 1.0985552 | AN100: =AN99-(($AN$99-$AN$124)/25) -> 1.0966816 | AO100: =AO99-(($AO$99-$AO$124)/25) -> 1.094808 | AP100: =AP99-(($AP$99-$AP$124)/25) -> 1.0929344 | AQ100: =AQ99-(($AQ$99-$AQ$124)/25) -> 1.0910608 | AR100: =AR99-(($AR$99-$AR$124)/25) -> 1.0891872 | AS100: =AS99-(($AS$99-$AS$124)/25) -> 1.0873136 | AT100: 1.08544 | AU100: =AU99-(($AU$99-$AU$124)/25) -> 1.0836864 | AV100: =AV99-(($AV$99-$AV$124)/25) -> 1.0819328 | AW100: =AW99-(($AW$99-$AW$124)/25) -> 1.0801792 | AX100: =AX99-(($AX$99-$AX$124)/25) -> 1.0784256 | AY100: =AY99-(($AY$99-$AY$124)/25) -> 1.076672 | AZ100: =AZ99-(($AZ$99-$AZ$124)/25) -> 1.0749184 | BA100: =BA99-(($BA$99-$BA$124)/25) -> 1.0731648 | BB100: =BB99-(($BB$99-$BB$124)/25) -> 1.0714112 | BC100: =BC99-(($BC$99-$BC$124)/25) -> 1.0696576 | BD100: =BD99-(($BD$99-$BD$124)/25) -> 1.067904 | BE100: =BE99-(($BE$99-$BE$124)/25) -> 1.0661504 | BF100: =BF99-(($BF$99-$BF$124)/25) -> 1.0643968 | BG100: =BG99-(($BG$99-$BG$124)/25) -> 1.0626432 | BH100: =BH99-(($BH$99-$BH$124)/25) -> 1.0608896 | BI100: =BI99-(($BI$99-$BI$124)/25) -> 1.059136 | BJ100: =BJ99-(($BJ$99-$BJ$124)/25) -> 1.0573824 | BK100: =BK99-(($BK$99-$BK$124)/25) -> 1.0556288 | BL100: =BL99-(($BL$99-$BL$124)/25) -> 1.0538752 | BM100: =BM99-(($BM$99-$BM$124)/25) -> 1.0521216 | BN100: =BN99-(($BN$99-$BN$124)/25) -> 1.050368 | BO100: =BO99-(($BO$99-$BO$124)/25) -> 1.0486144 | BP100: =BP99-(($BP$99-$BP$124)/25) -> 1.0468608 | BQ100: =BQ99-(($BQ$99-$BQ$124)/25) -> 1.0451072 | BR100: =BR99-(($BR$99-$BR$124)/25) -> 1.0433536 | BS100: =BS99-(($BS$99-$BS$124)/25) -> 1.0416
S101: =S100+0.01 -> 5.77 | T101: =T100-(($T$99-$T$124)/25) -> 1.12856 | V101: =V100-(($V$99-$V$124)/25) -> 1.1266928 | W101: =W100-(($W$99-$W$124)/25) -> 1.1248256 | X101: =X100-(($X$99-$X$124)/25) -> 1.1229584 | Y101: =Y100-(($Y$99-$Y$124)/25) -> 1.1210912 | Z101: =Z100-(($Z$99-$Z$124)/25) -> 1.119224 | AA101: =AA100-(($AA$99-$AA$124)/25) -> 1.1173568 | AB101: =AB100-(($AB$99-$AB$124)/25) -> 1.1154896 | AC101: =AC100-(($AC$99-$AC$124)/25) -> 1.1136224 | AD101: =AD100-(($AD$99-$AD$124)/25) -> 1.1117552 | AE101: =AE100-(($AE$99-$AE$124)/25) -> 1.109888 | AF101: =AF100-(($AF$99-$AF$124)/25) -> 1.1080208 | AG101: =AG100-(($AG$99-$AG$124)/25) -> 1.1061536 | AH101: =AH100-(($AH$100-$AH$125)/25) -> 1.1079232 | AI101: =AI100-(($AI$100-$AI$125)/25) -> 1.1060496 | AJ101: =AJ100-(($AJ$99-$AJ$124)/25) -> 1.100552 | AK101: =AK100-(($AK$99-$AK$124)/25) -> 1.0986848 | AL101: =AL100-(($AL$99-$AL$124)/25) -> 1.0968176 | AM101: =AM100-(($AM$99-$AM$124)/25) -> 1.0949504 | AN101: =AN100-(($AN$99-$AN$124)/25) -> 1.0930832 | AO101: =AO100-(($AO$99-$AO$124)/25) -> 1.091216 | AP101: =AP100-(($AP$99-$AP$124)/25) -> 1.0893488 | AQ101: =AQ100-(($AQ$99-$AQ$124)/25) -> 1.0874816 | AR101: =AR100-(($AR$99-$AR$124)/25) -> 1.0856144 | AS101: =AS100-(($AS$99-$AS$124)/25) -> 1.0837472 | AT101: 1.08188 | AU101: =AU100-(($AU$99-$AU$124)/25) -> 1.0801328 | AV101: =AV100-(($AV$99-$AV$124)/25) -> 1.0783856 | AW101: =AW100-(($AW$99-$AW$124)/25) -> 1.0766384 | AX101: =AX100-(($AX$99-$AX$124)/25) -> 1.0748912 | AY101: =AY100-(($AY$99-$AY$124)/25) -> 1.073144 | AZ101: =AZ100-(($AZ$99-$AZ$124)/25) -> 1.0713968 | BA101: =BA100-(($BA$99-$BA$124)/25) -> 1.0696496 | BB101: =BB100-(($BB$99-$BB$124)/25) -> 1.0679024 | BC101: =BC100-(($BC$99-$BC$124)/25) -> 1.0661552 | BD101: =BD100-(($BD$99-$BD$124)/25) -> 1.064408 | BE101: =BE100-(($BE$99-$BE$124)/25) -> 1.0626608 | BF101: =BF100-(($BF$99-$BF$124)/25) -> 1.0609136 | BG101: =BG100-(($BG$99-$BG$124)/25) -> 1.0591664 | BH101: =BH100-(($BH$99-$BH$124)/25) -> 1.0574192 | BI101: =BI100-(($BI$99-$BI$124)/25) -> 1.055672 | BJ101: =BJ100-(($BJ$99-$BJ$124)/25) -> 1.0539248 | BK101: =BK100-(($BK$99-$BK$124)/25) -> 1.0521776 | BL101: =BL100-(($BL$99-$BL$124)/25) -> 1.0504304 | BM101: =BM100-(($BM$99-$BM$124)/25) -> 1.0486832 | BN101: =BN100-(($BN$99-$BN$124)/25) -> 1.046936 | BO101: =BO100-(($BO$99-$BO$124)/25) -> 1.0451888 | BP101: =BP100-(($BP$99-$BP$124)/25) -> 1.0434416 | BQ101: =BQ100-(($BQ$99-$BQ$124)/25) -> 1.0416944 | BR101: =BR100-(($BR$99-$BR$124)/25) -> 1.0399472 | BS101: =BS100-(($BS$99-$BS$124)/25) -> 1.0382
S102: 5.78 | T102: 1.12484 | V102: 1.1229792 | W102: 1.1211184 | X102: 1.1192576 | Y102: 1.1173968 | Z102: 1.115536 | AA102: 1.1136752 | AB102: 1.1118144 | AC102: 1.1099536 | AD102: 1.1080928 | AE102: 1.106232 | AF102: 1.1043712 | AG102: 1.1025104 | AH102: 1.1042864 | AI102: 1.1024192 | AJ102: 1.096928 | AK102: 1.0950672 | AL102: 1.0932064 | AM102: 1.0913456 | AN102: 1.0894848 | AO102: 1.087624 | AP102: 1.0857632 | AQ102: 1.0839024 | AR102: 1.0820416 | AS102: 1.0801808 | AT102: 1.07832 | AU102: 1.0765792 | AV102: 1.0748384 | AW102: 1.0730976 | AX102: 1.0713568 | AY102: 1.069616 | AZ102: 1.0678752 | BA102: 1.0661344 | BB102: 1.0643936 | BC102: 1.0626528 | BD102: 1.060912 | BE102: 1.0591712 | BF102: 1.0574304 | BG102: 1.0556896 | BH102: 1.0539488 | BI102: 1.052208 | BJ102: 1.0504672 | BK102: 1.0487264 | BL102: 1.0469856 | BM102: 1.0452448 | BN102: 1.043504 | BO102: 1.0417632 | BP102: 1.0400224 | BQ102: 1.0382816 | BR102: 1.0365408 | BS102: 1.0348
S103: 5.79 | T103: 1.12112 | V103: 1.1192656 | W103: 1.1174112 | X103: 1.1155568 | Y103: 1.1137024 | Z103: 1.111848 | AA103: 1.1099936 | AB103: 1.1081392 | AC103: 1.1062848 | AD103: 1.1044304 | AE103: 1.102576 | AF103: 1.1007216 | AG103: 1.0988672 | AH103: 1.1006496 | AI103: 1.0987888 | AJ103: 1.093304 | AK103: 1.0914496 | AL103: 1.0895952 | AM103: 1.0877408 | AN103: 1.0858864 | AO103: 1.084032 | AP103: 1.0821776 | AQ103: 1.0803232 | AR103: 1.0784688 | AS103: 1.0766144 | AT103: 1.07476 | AU103: 1.0730256 | AV103: 1.0712912 | AW103: 1.0695568 | AX103: 1.0678224 | AY103: 1.066088 | AZ103: 1.0643536 | BA103: 1.0626192 | BB103: 1.0608848 | BC103: 1.0591504 | BD103: 1.057416 | BE103: 1.0556816 | BF103: 1.0539472 | BG103: 1.0522128 | BH103: 1.0504784 | BI103: 1.048744 | BJ103: 1.0470096 | BK103: 1.0452752 | BL103: 1.0435408 | BM103: 1.0418064 | BN103: 1.040072 | BO103: 1.0383376 | BP103: 1.0366032 | BQ103: 1.0348688 | BR103: 1.0331344 | BS103: 1.0314
S104: 5.8 | T104: 1.1174 | V104: 1.115552 | W104: 1.113704 | X104: 1.111856 | Y104: 1.110008 | Z104: 1.10816 | AA104: 1.106312 | AB104: 1.104464 | AC104: 1.102616 | AD104: 1.100768 | AE104: 1.09892 | AF104: 1.097072 | AG104: 1.095224 | AH104: 1.0970128 | AI104: 1.0951584 | AJ104: 1.08968 | AK104: 1.087832 | AL104: 1.085984 | AM104: 1.084136 | AN104: 1.082288 | AO104: 1.08044 | AP104: 1.078592 | AQ104: 1.076744 | AR104: 1.074896 | AS104: 1.073048 | AT104: 1.0712 | AU104: 1.069472 | AV104: 1.067744 | AW104: 1.066016 | AX104: 1.064288 | AY104: 1.06256 | AZ104: 1.060832 | BA104: 1.059104 | BB104: 1.057376 | BC104: 1.055648 | BD104: 1.05392 | BE104: 1.052192 | BF104: 1.050464 | BG104: 1.048736 | BH104: 1.047008 | BI104: 1.04528 | BJ104: 1.043552 | BK104: 1.041824 | BL104: 1.040096 | BM104: 1.038368 | BN104: 1.03664 | BO104: 1.034912 | BP104: 1.033184 | BQ104: 1.031456 | BR104: 1.029728 | BS104: 1.028
S105: 5.81 | T105: 1.11368 | V105: 1.1118384 | W105: 1.1099968 | X105: 1.1081552 | Y105: 1.1063136 | Z105: 1.104472 | AA105: 1.1026304 | AB105: 1.1007888 | AC105: 1.0989472 | AD105: 1.0971056 | AE105: 1.095264 | AF105: 1.0934224 | AG105: 1.0915808 | AH105: 1.093376 | AI105: 1.091528 | AJ105: 1.086056 | AK105: 1.0842144 | AL105: 1.0823728 | AM105: 1.0805312 | AN105: 1.0786896 | AO105: 1.076848 | AP105: 1.0750064 | AQ105: 1.0731648 | AR105: 1.0713232 | AS105: 1.0694816 | AT105: 1.06764 | AU105: 1.0659184 | AV105: 1.0641968 | AW105: 1.0624752 | AX105: 1.0607536 | AY105: 1.059032 | AZ105: 1.0573104 | BA105: 1.0555888 | BB105: 1.0538672 | BC105: 1.0521456 | BD105: 1.050424 | BE105: 1.0487024 | BF105: 1.0469808 | BG105: 1.0452592 | BH105: 1.0435376 | BI105: 1.041816 | BJ105: 1.0400944 | BK105: 1.0383728 | BL105: 1.0366512 | BM105: 1.0349296 | BN105: 1.033208 | BO105: 1.0314864 | BP105: 1.0297648 | BQ105: 1.0280432 | BR105: 1.0263216 | BS105: 1.0246
S106: 5.82 | T106: 1.10996 | V106: 1.1081248 | W106: 1.1062896 | X106: 1.1044544 | Y106: 1.1026192 | Z106: 1.100784 | AA106: 1.0989488 | AB106: 1.0971136 | AC106: 1.0952784 | AD106: 1.0934432 | AE106: 1.091608 | AF106: 1.0897728 | AG106: 1.0879376 | AH106: 1.0897392 | AI106: 1.0878976 | AJ106: 1.082432 | AK106: 1.0805968 | AL106: 1.0787616 | AM106: 1.0769264 | AN106: 1.0750912 | AO106: 1.073256 | AP106: 1.0714208 | AQ106: 1.0695856 | AR106: 1.0677504 | AS106: 1.0659152 | AT106: 1.06408 | AU106: 1.0623648 | AV106: 1.0606496 | AW106: 1.0589344 | AX106: 1.0572192 | AY106: 1.055504 | AZ106: 1.0537888 | BA106: 1.0520736 | BB106: 1.0503584 | BC106: 1.0486432 | BD106: 1.046928 | BE106: 1.0452128 | BF106: 1.0434976 | BG106: 1.0417824 | BH106: 1.0400672 | BI106: 1.038352 | BJ106: 1.0366368 | BK106: 1.0349216 | BL106: 1.0332064 | BM106: 1.0314912 | BN106: 1.029776 | BO106: 1.0280608 | BP106: 1.0263456 | BQ106: 1.0246304 | BR106: 1.0229152 | BS106: 1.0212
S107: 5.83 | T107: 1.10624 | V107: 1.1044112 | W107: 1.1025824 | X107: 1.1007536 | Y107: 1.0989248 | Z107: 1.097096 | AA107: 1.0952672 | AB107: 1.0934384 | AC107: 1.0916096 | AD107: 1.0897808 | AE107: 1.087952 | AF107: 1.0861232 | AG107: 1.0842944 | AH107: 1.0861024 | AI107: 1.0842672 | AJ107: 1.078808 | AK107: 1.0769792 | AL107: 1.0751504 | AM107: 1.0733216 | AN107: 1.0714928 | AO107: 1.069664 | AP107: 1.0678352 | AQ107: 1.0660064 | AR107: 1.0641776 | AS107: 1.0623488 | AT107: 1.06052 | AU107: 1.0588112 | AV107: 1.0571024 | AW107: 1.0553936 | AX107: 1.0536848 | AY107: 1.051976 | AZ107: 1.0502672 | BA107: 1.0485584 | BB107: 1.0468496 | BC107: 1.0451408 | BD107: 1.043432 | BE107: 1.0417232 | BF107: 1.0400144 | BG107: 1.0383056 | BH107: 1.0365968 | BI107: 1.034888 | BJ107: 1.0331792 | BK107: 1.0314704 | BL107: 1.0297616 | BM107: 1.0280528 | BN107: 1.026344 | BO107: 1.0246352 | BP107: 1.0229264 | BQ107: 1.0212176 | BR107: 1.0195088 | BS107: 1.0178
S108: 5.84 | T108: 1.10252 | V108: 1.1006976 | W108: 1.0988752 | X108: 1.0970528 | Y108: 1.0952304 | Z108: 1.093408 | AA108: 1.0915856 | AB108: 1.0897632 | AC108: 1.0879408 | AD108: 1.0861184 | AE108: 1.084296 | AF108: 1.0824736 | AG108: 1.0806512 | AH108: 1.0824656 | AI108: 1.0806368 | AJ108: 1.075184 | AK108: 1.0733616 | AL108: 1.0715392 | AM108: 1.0697168 | AN108: 1.0678944 | AO108: 1.066072 | AP108: 1.0642496 | AQ108: 1.0624272 | AR108: 1.0606048 | AS108: 1.0587824 | AT108: 1.05696 | AU108: 1.0552576 | AV108: 1.0535552 | AW108: 1.0518528 | AX108: 1.0501504 | AY108: 1.048448 | AZ108: 1.0467456 | BA108: 1.0450432 | BB108: 1.0433408 | BC108: 1.0416384 | BD108: 1.039936 | BE108: 1.0382336 | BF108: 1.0365312 | BG108: 1.0348288 | BH108: 1.0331264 | BI108: 1.031424 | BJ108: 1.0297216 | BK108: 1.0280192 | BL108: 1.0263168 | BM108: 1.0246144 | BN108: 1.022912 | BO108: 1.0212096 | BP108: 1.0195072 | BQ108: 1.0178048 | BR108: 1.0161024 | BS108: 1.0144
S109: 5.85 | T109: 1.0988 | V109: 1.096984 | W109: 1.095168 | X109: 1.093352 | Y109: 1.091536 | Z109: 1.08972 | AA109: 1.087904 | AB109: 1.086088 | AC109: 1.084272 | AD109: 1.082456 | AE109: 1.08064 | AF109: 1.078824 | AG109: 1.077008 | AH109: 1.0788288 | AI109: 1.0770064 | AJ109: 1.07156 | AK109: 1.069744 | AL109: 1.067928 | AM109: 1.066112 | AN109: 1.064296 | AO109: 1.06248 | AP109: 1.060664 | AQ109: 1.058848 | AR109: 1.057032 | AS109: 1.055216 | AT109: 1.0534 | AU109: 1.051704 | AV109: 1.050008 | AW109: 1.048312 | AX109: 1.046616 | AY109: 1.04492 | AZ109: 1.043224 | BA109: 1.041528 | BB109: 1.039832 | BC109: 1.038136 | BD109: 1.03644 | BE109: 1.034744 | BF109: 1.033048 | BG109: 1.031352 | BH109: 1.029656 | BI109: 1.02796 | BJ109: 1.026264 | BK109: 1.024568 | BL109: 1.022872 | BM109: 1.021176 | BN109: 1.01948 | BO109: 1.017784 | BP109: 1.016088 | BQ109: 1.014392 | BR109: 1.012696 | BS109: 1.011
S110: 5.86 | T110: 1.09508 | V110: 1.0932704 | W110: 1.0914608 | X110: 1.0896512 | Y110: 1.0878416 | Z110: 1.086032 | AA110: 1.0842224 | AB110: 1.0824128 | AC110: 1.0806032 | AD110: 1.0787936 | AE110: 1.076984 | AF110: 1.0751744 | AG110: 1.0733648 | AH110: 1.075192 | AI110: 1.073376 | AJ110: 1.067936 | AK110: 1.0661264 | AL110: 1.0643168 | AM110: 1.0625072 | AN110: 1.0606976 | AO110: 1.058888 | AP110: 1.0570784 | AQ110: 1.0552688 | AR110: 1.0534592 | AS110: 1.0516496 | AT110: 1.04984 | AU110: 1.0481504 | AV110: 1.0464608 | AW110: 1.0447712 | AX110: 1.0430816 | AY110: 1.041392 | AZ110: 1.0397024 | BA110: 1.0380128 | BB110: 1.0363232 | BC110: 1.0346336 | BD110: 1.032944 | BE110: 1.0312544 | BF110: 1.0295648 | BG110: 1.0278752 | BH110: 1.0261856 | BI110: 1.024496 | BJ110: 1.0228064 | BK110: 1.0211168 | BL110: 1.0194272 | BM110: 1.0177376 | BN110: 1.016048 | BO110: 1.0143584 | BP110: 1.0126688 | BQ110: 1.0109792 | BR110: 1.0092896 | BS110: 1.0076
S111: 5.87 | T111: 1.09136 | V111: 1.0895568 | W111: 1.0877536 | X111: 1.0859504 | Y111: 1.0841472 | Z111: 1.082344 | AA111: 1.0805408 | AB111: 1.0787376 | AC111: 1.0769344 | AD111: 1.0751312 | AE111: 1.073328 | AF111: 1.0715248 | AG111: 1.0697216 | AH111: 1.0715552 | AI111: 1.0697456 | AJ111: 1.064312 | AK111: 1.0625088 | AL111: 1.0607056 | AM111: 1.0589024 | AN111: 1.0570992 | AO111: 1.055296 | AP111: 1.0534928 | AQ111: 1.0516896 | AR111: 1.0498864 | AS111: 1.0480832 | AT111: 1.04628 | AU111: 1.0445968 | AV111: 1.0429136 | AW111: 1.0412304 | AX111: 1.0395472 | AY111: 1.037864 | AZ111: 1.0361808 | BA111: 1.0344976 | BB111: 1.0328144 | BC111: 1.0311312 | BD111: 1.029448 | BE111: 1.0277648 | BF111: 1.0260816 | BG111: 1.0243984 | BH111: 1.0227152 | BI111: 1.021032 | BJ111: 1.0193488 | BK111: 1.0176656 | BL111: 1.0159824 | BM111: 1.0142992 | BN111: 1.012616 | BO111: 1.0109328 | BP111: 1.0092496 | BQ111: 1.0075664 | BR111: 1.0058832 | BS111: 1.0042
S112: 5.88 | T112: 1.08764 | V112: 1.0858432 | W112: 1.0840464 | X112: 1.0822496 | Y112: 1.0804528 | Z112: 1.078656 | AA112: 1.0768592 | AB112: 1.0750624 | AC112: 1.0732656 | AD112: 1.0714688 | AE112: 1.069672 | AF112: 1.0678752 | AG112: 1.0660784 | AH112: 1.0679184 | AI112: 1.0661152 | AJ112: 1.060688 | AK112: 1.0588912 | AL112: 1.0570944 | AM112: 1.0552976 | AN112: 1.0535008 | AO112: 1.051704 | AP112: 1.0499072 | AQ112: 1.0481104 | AR112: 1.0463136 | AS112: 1.0445168 | AT112: 1.04272 | AU112: 1.0410432 | AV112: 1.0393664 | AW112: 1.0376896 | AX112: 1.0360128 | AY112: 1.034336 | AZ112: 1.0326592 | BA112: 1.0309824 | BB112: 1.0293056 | BC112: 1.0276288 | BD112: 1.025952 | BE112: 1.0242752 | BF112: 1.0225984 | BG112: 1.0209216 | BH112: 1.0192448 | BI112: 1.017568 | BJ112: 1.0158912 | BK112: 1.0142144 | BL112: 1.0125376 | BM112: 1.0108608 | BN112: 1.009184 | BO112: 1.0075072 | BP112: 1.0058304 | BQ112: 1.0041536 | BR112: 1.0024768 | BS112: 1.0008
S113: 5.89 | T113: 1.08392 | V113: 1.0821296 | W113: 1.0803392 | X113: 1.0785488 | Y113: 1.0767584 | Z113: 1.074968 | AA113: 1.0731776 | AB113: 1.0713872 | AC113: 1.0695968 | AD113: 1.0678064 | AE113: 1.066016 | AF113: 1.0642256 | AG113: 1.0624352 | AH113: 1.0642816 | AI113: 1.0624848 | AJ113: 1.057064 | AK113: 1.0552736 | AL113: 1.0534832 | AM113: 1.0516928 | AN113: 1.0499024 | AO113: 1.048112 | AP113: 1.0463216 | AQ113: 1.0445312 | AR113: 1.0427408 | AS113: 1.0409504 | AT113: 1.03916 | AU113: 1.0374896 | AV113: 1.0358192 | AW113: 1.0341488 | AX113: 1.0324784 | AY113: 1.030808 | AZ113: 1.0291376 | BA113: 1.0274672 | BB113: 1.0257968 | BC113: 1.0241264 | BD113: 1.022456 | BE113: 1.0207856 | BF113: 1.0191152 | BG113: 1.0174448 | BH113: 1.0157744 | BI113: 1.014104 | BJ113: 1.0124336 | BK113: 1.0107632 | BL113: 1.0090928 | BM113: 1.0074224 | BN113: 1.005752 | BO113: 1.0040816 | BP113: 1.0024112 | BQ113: 1.0007408 | BR113: 0.9990704 | BS113: 0.9974
S114: 5.9 | T114: 1.0802 | V114: 1.078416 | W114: 1.076632 | X114: 1.074848 | Y114: 1.073064 | Z114: 1.07128 | AA114: 1.069496 | AB114: 1.067712 | AC114: 1.065928 | AD114: 1.064144 | AE114: 1.06236 | AF114: 1.060576 | AG114: 1.058792 | AH114: 1.0606448 | AI114: 1.0588544 | AJ114: 1.05344 | AK114: 1.051656 | AL114: 1.049872 | AM114: 1.048088 | AN114: 1.046304 | AO114: 1.04452 | AP114: 1.042736 | AQ114: 1.040952 | AR114: 1.039168 | AS114: 1.037384 | AT114: 1.0356 | AU114: 1.033936 | AV114: 1.032272 | AW114: 1.030608 | AX114: 1.028944 | AY114: 1.02728 | AZ114: 1.025616 | BA114: 1.023952 | BB114: 1.022288 | BC114: 1.020624 | BD114: 1.01896 | BE114: 1.017296 | BF114: 1.015632 | BG114: 1.013968 | BH114: 1.012304 | BI114: 1.01064 | BJ114: 1.008976 | BK114: 1.007312 | BL114: 1.005648 | BM114: 1.003984 | BN114: 1.00232 | BO114: 1.000656 | BP114: 0.998992 | BQ114: 0.997328 | BR114: 0.995664 | BS114: 0.994
S115: 5.91 | T115: 1.07648 | V115: 1.0747024 | W115: 1.0729248 | X115: 1.0711472 | Y115: 1.0693696 | Z115: 1.067592 | AA115: 1.0658144 | AB115: 1.0640368 | AC115: 1.0622592 | AD115: 1.0604816 | AE115: 1.058704 | AF115: 1.0569264 | AG115: 1.0551488 | AH115: 1.057008 | AI115: 1.055224 | AJ115: 1.049816 | AK115: 1.0480384 | AL115: 1.0462608 | AM115: 1.0444832 | AN115: 1.0427056 | AO115: 1.040928 | AP115: 1.0391504 | AQ115: 1.0373728 | AR115: 1.0355952 | AS115: 1.0338176 | AT115: 1.03204 | AU115: 1.0303824 | AV115: 1.0287248 | AW115: 1.0270672 | AX115: 1.0254096 | AY115: 1.023752 | AZ115: 1.0220944 | BA115: 1.0204368 | BB115: 1.0187792 | BC115: 1.0171216 | BD115: 1.015464 | BE115: 1.0138064 | BF115: 1.0121488 | BG115: 1.0104912 | BH115: 1.0088336 | BI115: 1.007176 | BJ115: 1.0055184 | BK115: 1.0038608 | BL115: 1.0022032 | BM115: 1.0005456 | BN115: 0.998888 | BO115: 0.9972304 | BP115: 0.9955728 | BQ115: 0.9939152 | BR115: 0.9922576 | BS115: 0.9906
S116: 5.92 | T116: 1.07276 | V116: 1.0709888 | W116: 1.0692176 | X116: 1.0674464 | Y116: 1.0656752 | Z116: 1.063904 | AA116: 1.0621328 | AB116: 1.0603616 | AC116: 1.0585904 | AD116: 1.0568192 | AE116: 1.055048 | AF116: 1.0532768 | AG116: 1.0515056 | AH116: 1.0533712 | AI116: 1.0515936 | AJ116: 1.046192 | AK116: 1.0444208 | AL116: 1.0426496 | AM116: 1.0408784 | AN116: 1.0391072 | AO116: 1.037336 | AP116: 1.0355648 | AQ116: 1.0337936 | AR116: 1.0320224 | AS116: 1.0302512 | AT116: 1.02848 | AU116: 1.0268288 | AV116: 1.0251776 | AW116: 1.0235264 | AX116: 1.0218752 | AY116: 1.020224 | AZ116: 1.0185728 | BA116: 1.0169216 | BB116: 1.0152704 | BC116: 1.0136192 | BD116: 1.011968 | BE116: 1.0103168 | BF116: 1.0086656 | BG116: 1.0070144 | BH116: 1.0053632 | BI116: 1.003712 | BJ116: 1.0020608 | BK116: 1.0004096 | BL116: 0.9987584 | BM116: 0.9971072 | BN116: 0.995456 | BO116: 0.9938048 | BP116: 0.9921536 | BQ116: 0.9905024 | BR116: 0.9888512 | BS116: 0.9872
S117: 5.93 | T117: 1.06904 | V117: 1.0672752 | W117: 1.0655104 | X117: 1.0637456 | Y117: 1.0619808 | Z117: 1.060216 | AA117: 1.0584512 | AB117: 1.0566864 | AC117: 1.0549216 | AD117: 1.0531568 | AE117: 1.051392 | AF117: 1.0496272 | AG117: 1.0478624 | AH117: 1.0497344 | AI117: 1.0479632 | AJ117: 1.042568 | AK117: 1.0408032 | AL117: 1.0390384 | AM117: 1.0372736 | AN117: 1.0355088 | AO117: 1.033744 | AP117: 1.0319792 | AQ117: 1.0302144 | AR117: 1.0284496 | AS117: 1.0266848 | AT117: 1.02492 | AU117: 1.0232752 | AV117: 1.0216304 | AW117: 1.0199856 | AX117: 1.0183408 | AY117: 1.016696 | AZ117: 1.0150512 | BA117: 1.0134064 | BB117: 1.0117616 | BC117: 1.0101168 | BD117: 1.008472 | BE117: 1.0068272 | BF117: 1.0051824 | BG117: 1.0035376 | BH117: 1.0018928 | BI117: 1.000248 | BJ117: 0.9986032 | BK117: 0.9969584 | BL117: 0.9953136 | BM117: 0.9936688 | BN117: 0.992024 | BO117: 0.9903792 | BP117: 0.9887344 | BQ117: 0.9870896 | BR117: 0.9854448 | BS117: 0.9838
S118: 5.94 | T118: 1.06532 | V118: 1.0635616 | W118: 1.0618032 | X118: 1.0600448 | Y118: 1.0582864 | Z118: 1.056528 | AA118: 1.0547696 | AB118: 1.0530112 | AC118: 1.0512528 | AD118: 1.0494944 | AE118: 1.047736 | AF118: 1.0459776 | AG118: 1.0442192 | AH118: 1.0460976 | AI118: 1.0443328 | AJ118: 1.038944 | AK118: 1.0371856 | AL118: 1.0354272 | AM118: 1.0336688 | AN118: 1.0319104 | AO118: 1.030152 | AP118: 1.0283936 | AQ118: 1.0266352 | AR118: 1.0248768 | AS118: 1.0231184 | AT118: 1.02136 | AU118: 1.0197216 | AV118: 1.0180832 | AW118: 1.0164448 | AX118: 1.0148064 | AY118: 1.013168 | AZ118: 1.0115296 | BA118: 1.0098912 | BB118: 1.0082528 | BC118: 1.0066144 | BD118: 1.004976 | BE118: 1.0033376 | BF118: 1.0016992 | BG118: 1.0000608 | BH118: 0.9984224 | BI118: 0.996784 | BJ118: 0.9951456 | BK118: 0.9935072 | BL118: 0.9918688 | BM118: 0.9902304 | BN118: 0.988592 | BO118: 0.9869536 | BP118: 0.9853152 | BQ118: 0.9836768 | BR118: 0.9820384 | BS118: 0.9804
S119: 5.95 | T119: 1.0616 | V119: 1.059848 | W119: 1.058096 | X119: 1.056344 | Y119: 1.054592 | Z119: 1.05284 | AA119: 1.051088 | AB119: 1.049336 | AC119: 1.047584 | AD119: 1.045832 | AE119: 1.04408 | AF119: 1.042328 | AG119: 1.040576 | AH119: 1.0424608 | AI119: 1.0407024 | AJ119: 1.03532 | AK119: 1.033568 | AL119: 1.031816 | AM119: 1.030064 | AN119: 1.028312 | AO119: 1.02656 | AP119: 1.024808 | AQ119: 1.023056 | AR119: 1.021304 | AS119: 1.019552 | AT119: 1.0178 | AU119: 1.016168 | AV119: 1.014536 | AW119: 1.012904 | AX119: 1.011272 | AY119: 1.00964 | AZ119: 1.008008 | BA119: 1.006376 | BB119: 1.004744 | BC119: 1.003112 | BD119: 1.00148 | BE119: 0.999848 | BF119: 0.998216 | BG119: 0.996584 | BH119: 0.994952 | BI119: 0.99332 | BJ119: 0.991688 | BK119: 0.990056 | BL119: 0.988424 | BM119: 0.986792 | BN119: 0.98516 | BO119: 0.983528 | BP119: 0.981896 | BQ119: 0.980264 | BR119: 0.978632 | BS119: 0.977
S120: 5.96 | T120: 1.05788 | V120: 1.0561344 | W120: 1.0543888 | X120: 1.0526432 | Y120: 1.0508976 | Z120: 1.049152 | AA120: 1.0474064 | AB120: 1.0456608 | AC120: 1.0439152 | AD120: 1.0421696 | AE120: 1.040424 | AF120: 1.0386784 | AG120: 1.0369328 | AH120: 1.038824 | AI120: 1.037072 | AJ120: 1.031696 | AK120: 1.0299504 | AL120: 1.0282048 | AM120: 1.0264592 | AN120: 1.0247136 | AO120: 1.022968 | AP120: 1.0212224 | AQ120: 1.0194768 | AR120: 1.0177312 | AS120: 1.0159856 | AT120: 1.01424 | AU120: 1.0126144 | AV120: 1.0109888 | AW120: 1.0093632 | AX120: 1.0077376 | AY120: 1.006112 | AZ120: 1.0044864 | BA120: 1.0028608 | BB120: 1.0012352 | BC120: 0.9996096 | BD120: 0.997984 | BE120: 0.9963584 | BF120: 0.9947328 | BG120: 0.9931072 | BH120: 0.9914816 | BI120: 0.989856 | BJ120: 0.9882304 | BK120: 0.9866048 | BL120: 0.9849792 | BM120: 0.9833536 | BN120: 0.981728 | BO120: 0.9801024 | BP120: 0.9784768 | BQ120: 0.9768512 | BR120: 0.9752256 | BS120: 0.9736
S121: 5.97 | T121: 1.05416 | V121: 1.0524208 | W121: 1.0506816 | X121: 1.0489424 | Y121: 1.0472032 | Z121: 1.045464 | AA121: 1.0437248 | AB121: 1.0419856 | AC121: 1.0402464 | AD121: 1.0385072 | AE121: 1.036768 | AF121: 1.0350288 | AG121: 1.0332896 | AH121: 1.0351872 | AI121: 1.0334416 | AJ121: 1.028072 | AK121: 1.0263328 | AL121: 1.0245936 | AM121: 1.0228544 | AN121: 1.0211152 | AO121: 1.019376 | AP121: 1.0176368 | AQ121: 1.0158976 | AR121: 1.0141584 | AS121: 1.0124192 | AT121: 1.01068 | AU121: 1.0090608 | AV121: 1.0074416 | AW121: 1.0058224 | AX121: 1.0042032 | AY121: 1.002584 | AZ121: 1.0009648 | BA121: 0.9993456 | BB121: 0.9977264 | BC121: 0.9961072 | BD121: 0.994488 | BE121: 0.9928688 | BF121: 0.9912496 | BG121: 0.9896304 | BH121: 0.9880112 | BI121: 0.986392 | BJ121: 0.9847728 | BK121: 0.9831536 | BL121: 0.9815344 | BM121: 0.9799152 | BN121: 0.978296 | BO121: 0.9766768 | BP121: 0.9750576 | BQ121: 0.9734384 | BR121: 0.9718192 | BS121: 0.9702
S122: 5.98 | T122: 1.05044 | V122: 1.0487072 | W122: 1.0469744 | X122: 1.0452416 | Y122: 1.0435088 | Z122: 1.041776 | AA122: 1.0400432 | AB122: 1.0383104 | AC122: 1.0365776 | AD122: 1.0348448 | AE122: 1.033112 | AF122: 1.0313792 | AG122: 1.0296464 | AH122: 1.0315504 | AI122: 1.0298112 | AJ122: 1.024448 | AK122: 1.0227152 | AL122: 1.0209824 | AM122: 1.0192496 | AN122: 1.0175168 | AO122: 1.015784 | AP122: 1.0140512 | AQ122: 1.0123184 | AR122: 1.0105856 | AS122: 1.0088528 | AT122: 1.00712 | AU122: 1.0055072 | AV122: 1.0038944 | AW122: 1.0022816 | AX122: 1.0006688 | AY122: 0.999056 | AZ122: 0.9974432 | BA122: 0.9958304 | BB122: 0.9942176 | BC122: 0.9926048 | BD122: 0.990992 | BE122: 0.9893792 | BF122: 0.9877664 | BG122: 0.9861536 | BH122: 0.9845408 | BI122: 0.982928 | BJ122: 0.9813152 | BK122: 0.9797024 | BL122: 0.9780896 | BM122: 0.9764768 | BN122: 0.974864 | BO122: 0.9732512 | BP122: 0.9716384 | BQ122: 0.9700256 | BR122: 0.9684128 | BS122: 0.9668
S123: 5.99 | T123: 1.04672 | V123: 1.0449936 | W123: 1.0432672 | X123: 1.0415408 | Y123: 1.0398144 | Z123: 1.038088 | AA123: 1.0363616 | AB123: 1.0346352 | AC123: 1.0329088 | AD123: 1.0311824 | AE123: 1.029456 | AF123: 1.0277296 | AG123: 1.0260032 | AH123: 1.0279136 | AI123: 1.0261808 | AJ123: 1.020824 | AK123: 1.0190976 | AL123: 1.0173712 | AM123: 1.0156448 | AN123: 1.0139184 | AO123: 1.012192 | AP123: 1.0104656 | AQ123: 1.0087392 | AR123: 1.0070128 | AS123: 1.0052864 | AT123: =AT124+(0.089/25) -> 1.00356 | AU123: 1.0019536 | AV123: 1.0003472 | AW123: 0.9987408 | AX123: 0.9971344 | AY123: 0.995528 | AZ123: 0.9939216 | BA123: 0.9923152 | BB123: 0.9907088 | BC123: 0.9891024 | BD123: 0.987496 | BE123: 0.9858896 | BF123: 0.9842832 | BG123: 0.9826768 | BH123: 0.9810704 | BI123: 0.979464 | BJ123: 0.9778576 | BK123: 0.9762512 | BL123: 0.9746448 | BM123: 0.9730384 | BN123: 0.971432 | BO123: 0.9698256 | BP123: 0.9682192 | BQ123: 0.9666128 | BR123: 0.9650064 | BS123: 0.9634
S124: 6 | T124: =V124+(0.043/25) -> 1.043 | V124: =W124+(0.043/25) -> 1.04128 | W124: 1.03956 | X124: 1.03784 | Y124: 1.03612 | Z124: 1.0344 | AA124: 1.03268 | AB124: 1.03096 | AC124: 1.02924 | AD124: 1.02752 | AE124: 1.0258 | AF124: 1.02408 | AG124: =AH125+(0.043/25) -> 1.02236 | AH124: 1.0242768 | AI124: 1.0225504 | AJ124: 1.0172 | AK124: 1.01548 | AL124: =AM124+(0.043/25) -> 1.01376 | AM124: 1.01204 | AN124: 1.01032 | AO124: 1.0086 | AP124: 1.00688 | AQ124: 1.00516 | AR124: 1.00344 | AS124: =AT124+(0.043/25) -> 1.00172 | AT124: 1 | AU124: =AT124-(0.04/25) -> 0.9984 | AV124: =AU124-(0.04/25) -> 0.9968 | AW124: 0.9952 | AX124: 0.9936 | AY124: 0.992 | AZ124: 0.9904 | BA124: 0.9888 | BB124: 0.9872 | BC124: 0.9856 | BD124: 0.984 | BE124: 0.9824 | BF124: 0.9808 | BG124: 0.9792 | BH124: 0.9776 | BI124: 0.976 | BJ124: 0.9744 | BK124: 0.9728 | BL124: 0.9712 | BM124: 0.9696 | BN124: 0.968 | BO124: 0.9664 | BP124: 0.9648 | BQ124: 0.9632 | BR124: 0.9616 | BS124: 0.96
S125: 6.01 | T125: =T124-(($T$124-$T$149)/25) -> 1.03976 | V125: =V124-(($V$124-$V$149)/25) -> 1.0380448 | W125: =W124-(($W$124-$W$149)/25) -> 1.0363296 | X125: =X124-(($X$124-$X$149)/25) -> 1.0346144 | Y125: =Y124-(($Y$124-$Y$149)/25) -> 1.0328992 | Z125: =Z124-(($Z$124-$Z$149)/25) -> 1.031184 | AA125: =AA124-(($AA$124-$AA$149)/25) -> 1.0294688 | AB125: =AB124-(($AB$124-$AB$149)/25) -> 1.0277536 | AC125: =AC124-(($AC$124-$AC$149)/25) -> 1.0260384 | AD125: =AD124-(($AD$124-$AD$149)/25) -> 1.0243232 | AE125: =AE124-(($AE$124-$AE$149)/25) -> 1.022608 | AF125: =AF124-(($AF$124-$AF$149)/25) -> 1.0208928 | AG125: =AG124-(($AG$124-$AG$149)/25) -> 1.0191776 | AH125: 1.02064 | AI125: =AJ124+(0.043/25) -> 1.01892 | AJ125: =AJ124-(($AJ$124-$AJ$149)/25) -> 1.014032 | AK125: =AK124-(($AK$124-$AK$149)/25) -> 1.0123168 | AL125: =AL124-(($AL$124-$AL$149)/25) -> 1.0106016 | AM125: =AM124-(($AM$124-$AM$149)/25) -> 1.0088864 | AN125: =AN124-(($AN$124-$AN$149)/25) -> 1.0071712 | AO125: =AO124-(($AO$124-$AO$149)/25) -> 1.005456 | AP125: =AP124-(($AP$124-$AP$149)/25) -> 1.0037408 | AQ125: =AQ124-(($AQ$124-$AQ$149)/25) -> 1.0020256 | AR125: =AR124-(($AR$124-$AR$149)/25) -> 1.0003104 | AS125: =AS124-(($AS$124-$AS$149)/25) -> 0.9985952 | AT125: =AT124-(0.078/25) -> 0.99688 | AU125: =AU124-(($AU$124-$AU$149)/25) -> 0.9952848 | AV125: =AV124-(($AV$124-$AV$149)/25) -> 0.9936896 | AW125: =AW124-(($AW$124-$AW$149)/25) -> 0.9920944 | AX125: =AX124-(($AX$124-$AX$149)/25) -> 0.9904992 | AY125: =AY124-(($AY$124-$AY$149)/25) -> 0.988904 | AZ125: =AZ124-(($AZ$124-$AZ$149)/25) -> 0.9873088 | BA125: =BA124-(($BA$124-$BA$149)/25) -> 0.9857136 | BB125: =BB124-(($BB$124-$BB$149)/25) -> 0.9841184 | BC125: =BC124-(($BC$124-$BC$149)/25) -> 0.9825232 | BD125: =BD124-(($BD$124-$BD$149)/25) -> 0.980928 | BE125: =BE124-(($BE$124-$BE$149)/25) -> 0.9793328 | BF125: =BF124-(($BF$124-$BF$149)/25) -> 0.9777376 | BG125: =BG124-(($BG$124-$BG$149)/25) -> 0.9761424 | BH125: =BH124-(($BH$124-$BH$149)/25) -> 0.9745472 | BI125: =BI124-(($BI$124-$BI$149)/25) -> 0.972952 | BJ125: =BJ124-(($BJ$124-$BJ$149)/25) -> 0.9713568 | BK125: =BK124-(($BK$124-$BK$149)/25) -> 0.9697616 | BL125: =BL124-(($BL$124-$BL$149)/25) -> 0.9681664 | BM125: =BM124-(($BM$124-$BM$149)/25) -> 0.9665712 | BN125: =BN124-(($BN$124-$BN$149)/25) -> 0.964976 | BO125: =BO124-(($BO$124-$BO$149)/25) -> 0.9633808 | BP125: =BP124-(($BP$124-$BP$149)/25) -> 0.9617856 | BQ125: =BQ124-(($BQ$124-$BQ$149)/25) -> 0.9601904 | BR125: =BR124-(($BR$124-$BR$149)/25) -> 0.9585952 | BS125: =BS124-(($BS$124-$BS$149)/25) -> 0.957
S126: 6.02 | T126: =T125-(($T$124-$T$149)/25) -> 1.03652 | V126: =V125-(($V$124-$V$149)/25) -> 1.0348096 | W126: =W125-(($W$124-$W$149)/25) -> 1.0330992 | X126: =X125-(($X$124-$X$149)/25) -> 1.0313888 | Y126: =Y125-(($Y$124-$Y$149)/25) -> 1.0296784 | Z126: =Z125-(($Z$124-$Z$149)/25) -> 1.027968 | AA126: =AA125-(($AA$124-$AA$149)/25) -> 1.0262576 | AB126: =AB125-(($AB$124-$AB$149)/25) -> 1.0245472 | AC126: =AC125-(($AC$124-$AC$149)/25) -> 1.0228368 | AD126: =AD125-(($AD$124-$AD$149)/25) -> 1.0211264 | AE126: =AE125-(($AE$124-$AE$149)/25) -> 1.019416 | AF126: =AF125-(($AF$124-$AF$149)/25) -> 1.0177056 | AG126: =AG125-(($AG$124-$AG$149)/25) -> 1.0159952 | AH126: =AH125-(($AH$125-$AH$150)/25) -> 1.0174624 | AI126: =AI125-(($AI$125-$AI$150)/25) -> 1.0157472 | AJ126: =AJ125-(($AJ$124-$AJ$149)/25) -> 1.010864 | AK126: =AK125-(($AK$124-$AK$149)/25) -> 1.0091536 | AL126: =AL125-(($AL$124-$AL$149)/25) -> 1.0074432 | AM126: =AM125-(($AM$124-$AM$149)/25) -> 1.0057328 | AN126: =AN125-(($AN$124-$AN$149)/25) -> 1.0040224 | AO126: =AO125-(($AO$124-$AO$149)/25) -> 1.002312 | AP126: =AP125-(($AP$124-$AP$149)/25) -> 1.0006016 | AQ126: =AQ125-(($AQ$124-$AQ$149)/25) -> 0.9988912 | AR126: =AR125-(($AR$124-$AR$149)/25) -> 0.9971808 | AS126: =AS125-(($AS$124-$AS$149)/25) -> 0.9954704 | AT126: =AT125-(0.078/25) -> 0.99376 | AU126: =AU125-(($AU$124-$AU$149)/25) -> 0.9921696 | AV126: =AV125-(($AV$124-$AV$149)/25) -> 0.9905792 | AW126: =AW125-(($AW$124-$AW$149)/25) -> 0.9889888 | AX126: =AX125-(($AX$124-$AX$149)/25) -> 0.9873984 | AY126: =AY125-(($AY$124-$AY$149)/25) -> 0.985808 | AZ126: =AZ125-(($AZ$124-$AZ$149)/25) -> 0.9842176 | BA126: =BA125-(($BA$124-$BA$149)/25) -> 0.9826272 | BB126: =BB125-(($BB$124-$BB$149)/25) -> 0.9810368 | BC126: =BC125-(($BC$124-$BC$149)/25) -> 0.9794464 | BD126: =BD125-(($BD$124-$BD$149)/25) -> 0.977856 | BE126: =BE125-(($BE$124-$BE$149)/25) -> 0.9762656 | BF126: =BF125-(($BF$124-$BF$149)/25) -> 0.9746752 | BG126: =BG125-(($BG$124-$BG$149)/25) -> 0.9730848 | BH126: =BH125-(($BH$124-$BH$149)/25) -> 0.9714944 | BI126: =BI125-(($BI$124-$BI$149)/25) -> 0.969904 | BJ126: =BJ125-(($BJ$124-$BJ$149)/25) -> 0.9683136 | BK126: =BK125-(($BK$124-$BK$149)/25) -> 0.9667232 | BL126: =BL125-(($BL$124-$BL$149)/25) -> 0.9651328 | BM126: =BM125-(($BM$124-$BM$149)/25) -> 0.9635424 | BN126: =BN125-(($BN$124-$BN$149)/25) -> 0.961952 | BO126: =BO125-(($BO$124-$BO$149)/25) -> 0.9603616 | BP126: =BP125-(($BP$124-$BP$149)/25) -> 0.9587712 | BQ126: =BQ125-(($BQ$124-$BQ$149)/25) -> 0.9571808 | BR126: =BR125-(($BR$124-$BR$149)/25) -> 0.9555904 | BS126: =BS125-(($BS$124-$BS$149)/25) -> 0.954
S127: 6.03 | T127: 1.03328 | V127: 1.0315744 | W127: 1.0298688 | X127: 1.0281632 | Y127: 1.0264576 | Z127: 1.024752 | AA127: 1.0230464 | AB127: 1.0213408 | AC127: 1.0196352 | AD127: 1.0179296 | AE127: 1.016224 | AF127: 1.0145184 | AG127: 1.0128128 | AH127: 1.0142848 | AI127: 1.0125744 | AJ127: 1.007696 | AK127: 1.0059904 | AL127: 1.0042848 | AM127: 1.0025792 | AN127: 1.0008736 | AO127: 0.999168 | AP127: 0.9974624 | AQ127: 0.9957568 | AR127: 0.9940512 | AS127: 0.9923456 | AT127: 0.99064 | AU127: 0.9890544 | AV127: 0.9874688 | AW127: 0.9858832 | AX127: 0.9842976 | AY127: 0.982712 | AZ127: 0.9811264 | BA127: 0.9795408 | BB127: 0.9779552 | BC127: 0.9763696 | BD127: 0.974784 | BE127: 0.9731984 | BF127: 0.9716128 | BG127: 0.9700272 | BH127: 0.9684416 | BI127: 0.966856 | BJ127: 0.9652704 | BK127: 0.9636848 | BL127: 0.9620992 | BM127: 0.9605136 | BN127: 0.958928 | BO127: 0.9573424 | BP127: 0.9557568 | BQ127: 0.9541712 | BR127: 0.9525856 | BS127: 0.951
S128: 6.04 | T128: 1.03004 | V128: 1.0283392 | W128: 1.0266384 | X128: 1.0249376 | Y128: 1.0232368 | Z128: 1.021536 | AA128: 1.0198352 | AB128: 1.0181344 | AC128: 1.0164336 | AD128: 1.0147328 | AE128: 1.013032 | AF128: 1.0113312 | AG128: 1.0096304 | AH128: 1.0111072 | AI128: 1.0094016 | AJ128: 1.004528 | AK128: 1.0028272 | AL128: 1.0011264 | AM128: 0.9994256 | AN128: 0.9977248 | AO128: 0.996024 | AP128: 0.9943232 | AQ128: 0.9926224 | AR128: 0.9909216 | AS128: 0.9892208 | AT128: 0.98752 | AU128: 0.9859392 | AV128: 0.9843584 | AW128: 0.9827776 | AX128: 0.9811968 | AY128: 0.979616 | AZ128: 0.9780352 | BA128: 0.9764544 | BB128: 0.9748736 | BC128: 0.9732928 | BD128: 0.971712 | BE128: 0.9701312 | BF128: 0.9685504 | BG128: 0.9669696 | BH128: 0.9653888 | BI128: 0.963808 | BJ128: 0.9622272 | BK128: 0.9606464 | BL128: 0.9590656 | BM128: 0.9574848 | BN128: 0.955904 | BO128: 0.9543232 | BP128: 0.9527424 | BQ128: 0.9511616 | BR128: 0.9495808 | BS128: 0.948
S129: =S128+0.01 -> 6.05 | T129: 1.0268 | V129: 1.025104 | W129: 1.023408 | X129: 1.021712 | Y129: 1.020016 | Z129: 1.01832 | AA129: 1.016624 | AB129: 1.014928 | AC129: 1.013232 | AD129: 1.011536 | AE129: 1.00984 | AF129: 1.008144 | AG129: 1.006448 | AH129: 1.0079296 | AI129: 1.0062288 | AJ129: 1.00136 | AK129: 0.999664 | AL129: 0.997968 | AM129: 0.996272 | AN129: 0.994576 | AO129: 0.99288 | AP129: 0.991184 | AQ129: 0.989488 | AR129: 0.987792 | AS129: 0.986096 | AT129: 0.9844 | AU129: 0.982824 | AV129: 0.981248 | AW129: 0.979672 | AX129: 0.978096 | AY129: 0.97652 | AZ129: 0.974944 | BA129: 0.973368 | BB129: 0.971792 | BC129: 0.970216 | BD129: 0.96864 | BE129: 0.967064 | BF129: 0.965488 | BG129: 0.963912 | BH129: 0.962336 | BI129: 0.96076 | BJ129: 0.959184 | BK129: 0.957608 | BL129: 0.956032 | BM129: 0.954456 | BN129: 0.95288 | BO129: 0.951304 | BP129: 0.949728 | BQ129: 0.948152 | BR129: 0.946576 | BS129: 0.945
S130: =S129+0.01 -> 6.06 | T130: 1.02356 | V130: 1.0218688 | W130: 1.0201776 | X130: 1.0184864 | Y130: 1.0167952 | Z130: 1.015104 | AA130: 1.0134128 | AB130: 1.0117216 | AC130: 1.0100304 | AD130: 1.0083392 | AE130: 1.006648 | AF130: 1.0049568 | AG130: 1.0032656 | AH130: 1.004752 | AI130: 1.003056 | AJ130: 0.998192 | AK130: 0.9965008 | AL130: 0.9948096 | AM130: 0.9931184 | AN130: 0.9914272 | AO130: 0.989736 | AP130: 0.9880448 | AQ130: 0.9863536 | AR130: 0.9846624 | AS130: 0.9829712 | AT130: 0.98128 | AU130: 0.9797088 | AV130: 0.9781376 | AW130: 0.9765664 | AX130: 0.9749952 | AY130: 0.973424 | AZ130: 0.9718528 | BA130: 0.9702816 | BB130: 0.9687104 | BC130: 0.9671392 | BD130: 0.965568 | BE130: 0.9639968 | BF130: 0.9624256 | BG130: 0.9608544 | BH130: 0.9592832 | BI130: 0.957712 | BJ130: 0.9561408 | BK130: 0.9545696 | BL130: 0.9529984 | BM130: 0.9514272 | BN130: 0.949856 | BO130: 0.9482848 | BP130: 0.9467136 | BQ130: 0.9451424 | BR130: 0.9435712 | BS130: 0.942
S131: 6.07 | T131: 1.02032 | V131: 1.0186336 | W131: 1.0169472 | X131: 1.0152608 | Y131: 1.0135744 | Z131: 1.011888 | AA131: 1.0102016 | AB131: 1.0085152 | AC131: 1.0068288 | AD131: 1.0051424 | AE131: 1.003456 | AF131: 1.0017696 | AG131: 1.0000832 | AH131: 1.0015744 | AI131: 0.9998832 | AJ131: 0.995024 | AK131: 0.9933376 | AL131: 0.9916512 | AM131: 0.9899648 | AN131: 0.9882784 | AO131: 0.986592 | AP131: 0.9849056 | AQ131: 0.9832192 | AR131: 0.9815328 | AS131: 0.9798464 | AT131: 0.97816 | AU131: 0.9765936 | AV131: 0.9750272 | AW131: 0.9734608 | AX131: 0.9718944 | AY131: 0.970328 | AZ131: 0.9687616 | BA131: 0.9671952 | BB131: 0.9656288 | BC131: 0.9640624 | BD131: 0.962496 | BE131: 0.9609296 | BF131: 0.9593632 | BG131: 0.9577968 | BH131: 0.9562304 | BI131: 0.954664 | BJ131: 0.9530976 | BK131: 0.9515312 | BL131: 0.9499648 | BM131: 0.9483984 | BN131: 0.946832 | BO131: 0.9452656 | BP131: 0.9436992 | BQ131: 0.9421328 | BR131: 0.9405664 | BS131: 0.939
S132: 6.08 | T132: 1.01708 | V132: 1.0153984 | W132: 1.0137168 | X132: 1.0120352 | Y132: 1.0103536 | Z132: 1.008672 | AA132: 1.0069904 | AB132: 1.0053088 | AC132: 1.0036272 | AD132: 1.0019456 | AE132: 1.000264 | AF132: 0.9985824 | AG132: 0.9969008 | AH132: 0.9983968 | AI132: 0.9967104 | AJ132: 0.991856 | AK132: 0.9901744 | AL132: 0.9884928 | AM132: 0.9868112 | AN132: 0.9851296 | AO132: 0.983448 | AP132: 0.9817664 | AQ132: 0.9800848 | AR132: 0.9784032 | AS132: 0.9767216 | AT132: 0.97504 | AU132: 0.9734784 | AV132: 0.9719168 | AW132: 0.9703552 | AX132: 0.9687936 | AY132: 0.967232 | AZ132: 0.9656704 | BA132: 0.9641088 | BB132: 0.9625472 | BC132: 0.9609856 | BD132: 0.959424 | BE132: 0.9578624 | BF132: 0.9563008 | BG132: 0.9547392 | BH132: 0.9531776 | BI132: 0.951616 | BJ132: 0.9500544 | BK132: 0.9484928 | BL132: 0.9469312 | BM132: 0.9453696 | BN132: 0.943808 | BO132: 0.9422464 | BP132: 0.9406848 | BQ132: 0.9391232 | BR132: 0.9375616 | BS132: 0.936
S133: 6.09 | T133: 1.01384 | V133: 1.0121632 | W133: 1.0104864 | X133: 1.0088096 | Y133: 1.0071328 | Z133: 1.005456 | AA133: 1.0037792 | AB133: 1.0021024 | AC133: 1.0004256 | AD133: 0.9987488 | AE133: 0.997072 | AF133: 0.9953952 | AG133: 0.9937184 | AH133: 0.9952192 | AI133: 0.9935376 | AJ133: 0.988688 | AK133: 0.9870112 | AL133: 0.9853344 | AM133: 0.9836576 | AN133: 0.9819808 | AO133: 0.980304 | AP133: 0.9786272 | AQ133: 0.9769504 | AR133: 0.9752736 | AS133: 0.9735968 | AT133: 0.97192 | AU133: 0.9703632 | AV133: 0.9688064 | AW133: 0.9672496 | AX133: 0.9656928 | AY133: 0.964136 | AZ133: 0.9625792 | BA133: 0.9610224 | BB133: 0.9594656 | BC133: 0.9579088 | BD133: 0.956352 | BE133: 0.9547952 | BF133: 0.9532384 | BG133: 0.9516816 | BH133: 0.9501248 | BI133: 0.948568 | BJ133: 0.9470112 | BK133: 0.9454544 | BL133: 0.9438976 | BM133: 0.9423408 | BN133: 0.940784 | BO133: 0.9392272 | BP133: 0.9376704 | BQ133: 0.9361136 | BR133: 0.9345568 | BS133: 0.933
S134: 6.1 | T134: 1.0106 | V134: 1.008928 | W134: 1.007256 | X134: 1.005584 | Y134: 1.003912 | Z134: 1.00224 | AA134: 1.000568 | AB134: 0.998896 | AC134: 0.997224 | AD134: 0.995552 | AE134: 0.99388 | AF134: 0.992208 | AG134: 0.990536 | AH134: 0.9920416 | AI134: 0.9903648 | AJ134: 0.98552 | AK134: 0.983848 | AL134: 0.982176 | AM134: 0.980504 | AN134: 0.978832 | AO134: 0.97716 | AP134: 0.975488 | AQ134: 0.973816 | AR134: 0.972144 | AS134: 0.970472 | AT134: 0.9688 | AU134: 0.967248 | AV134: 0.965696 | AW134: 0.964144 | AX134: 0.962592 | AY134: 0.96104 | AZ134: 0.959488 | BA134: 0.957936 | BB134: 0.956384 | BC134: 0.954832 | BD134: 0.95328 | BE134: 0.951728 | BF134: 0.950176 | BG134: 0.948624 | BH134: 0.947072 | BI134: 0.94552 | BJ134: 0.943968 | BK134: 0.942416 | BL134: 0.940864 | BM134: 0.939312 | BN134: 0.93776 | BO134: 0.936208 | BP134: 0.934656 | BQ134: 0.933104 | BR134: 0.931552 | BS134: 0.93
S135: 6.11 | T135: 1.00736 | V135: 1.0056928 | W135: 1.0040256 | X135: 1.0023584 | Y135: 1.0006912 | Z135: 0.999024 | AA135: 0.9973568 | AB135: 0.9956896 | AC135: 0.9940224 | AD135: 0.9923552 | AE135: 0.990688 | AF135: 0.9890208 | AG135: 0.9873536 | AH135: 0.988864 | AI135: 0.987192 | AJ135: 0.982352 | AK135: 0.9806848 | AL135: 0.9790176 | AM135: 0.9773504 | AN135: 0.9756832 | AO135: 0.974016 | AP135: 0.9723488 | AQ135: 0.9706816 | AR135: 0.9690144 | AS135: 0.9673472 | AT135: 0.96568 | AU135: 0.9641328 | AV135: 0.9625856 | AW135: 0.9610384 | AX135: 0.9594912 | AY135: 0.957944 | AZ135: 0.9563968 | BA135: 0.9548496 | BB135: 0.9533024 | BC135: 0.9517552 | BD135: 0.950208 | BE135: 0.9486608 | BF135: 0.9471136 | BG135: 0.9455664 | BH135: 0.9440192 | BI135: 0.942472 | BJ135: 0.9409248 | BK135: 0.9393776 | BL135: 0.9378304 | BM135: 0.9362832 | BN135: 0.934736 | BO135: 0.9331888 | BP135: 0.9316416 | BQ135: 0.9300944 | BR135: 0.9285472 | BS135: 0.927
S136: 6.12 | T136: 1.00412 | V136: 1.0024576 | W136: 1.0007952 | X136: 0.9991328 | Y136: 0.9974704 | Z136: 0.995808 | AA136: 0.9941456 | AB136: 0.9924832 | AC136: 0.9908208 | AD136: 0.9891584 | AE136: 0.987496 | AF136: 0.9858336 | AG136: 0.9841712 | AH136: 0.9856864 | AI136: 0.9840192 | AJ136: 0.979184 | AK136: 0.9775216 | AL136: 0.9758592 | AM136: 0.9741968 | AN136: 0.9725344 | AO136: 0.970872 | AP136: 0.9692096 | AQ136: 0.9675472 | AR136: 0.9658848 | AS136: 0.9642224 | AT136: 0.96256 | AU136: 0.9610176 | AV136: 0.9594752 | AW136: 0.9579328 | AX136: 0.9563904 | AY136: 0.954848 | AZ136: 0.9533056 | BA136: 0.9517632 | BB136: 0.9502208 | BC136: 0.9486784 | BD136: 0.947136 | BE136: 0.9455936 | BF136: 0.9440512 | BG136: 0.9425088 | BH136: 0.9409664 | BI136: 0.939424 | BJ136: 0.9378816 | BK136: 0.9363392 | BL136: 0.9347968 | BM136: 0.9332544 | BN136: 0.931712 | BO136: 0.9301696 | BP136: 0.9286272 | BQ136: 0.9270848 | BR136: 0.9255424 | BS136: 0.924
S137: 6.13 | T137: 1.00088 | V137: 0.9992224 | W137: 0.9975648 | X137: 0.9959072 | Y137: 0.9942496 | Z137: 0.992592 | AA137: 0.9909344 | AB137: 0.9892768 | AC137: 0.9876192 | AD137: 0.9859616 | AE137: 0.984304 | AF137: 0.9826464 | AG137: 0.9809888 | AH137: 0.9825088 | AI137: 0.9808464 | AJ137: 0.976016 | AK137: 0.9743584 | AL137: 0.9727008 | AM137: 0.9710432 | AN137: 0.9693856 | AO137: 0.967728 | AP137: 0.9660704 | AQ137: 0.9644128 | AR137: 0.9627552 | AS137: 0.9610976 | AT137: 0.95944 | AU137: 0.9579024 | AV137: 0.9563648 | AW137: 0.9548272 | AX137: 0.9532896 | AY137: 0.951752 | AZ137: 0.9502144 | BA137: 0.9486768 | BB137: 0.9471392 | BC137: 0.9456016 | BD137: 0.944064 | BE137: 0.9425264 | BF137: 0.9409888 | BG137: 0.9394512 | BH137: 0.9379136 | BI137: 0.936376 | BJ137: 0.9348384 | BK137: 0.9333008 | BL137: 0.9317632 | BM137: 0.9302256 | BN137: 0.928688 | BO137: 0.9271504 | BP137: 0.9256128 | BQ137: 0.9240752 | BR137: 0.9225376 | BS137: 0.921
S138: =S137+0.01 -> 6.14 | T138: 0.99764 | V138: 0.9959872 | W138: 0.9943344 | X138: 0.9926816 | Y138: 0.9910288 | Z138: 0.989376 | AA138: 0.9877232 | AB138: 0.9860704 | AC138: 0.9844176 | AD138: 0.9827648 | AE138: 0.981112 | AF138: 0.9794592 | AG138: 0.9778064 | AH138: 0.9793312 | AI138: 0.9776736 | AJ138: 0.972848 | AK138: 0.9711952 | AL138: 0.9695424 | AM138: 0.9678896 | AN138: 0.9662368 | AO138: 0.964584 | AP138: 0.9629312 | AQ138: 0.9612784 | AR138: 0.9596256 | AS138: 0.9579728 | AT138: 0.95632 | AU138: 0.9547872 | AV138: 0.9532544 | AW138: 0.9517216 | AX138: 0.9501888 | AY138: 0.948656 | AZ138: 0.9471232 | BA138: 0.9455904 | BB138: 0.9440576 | BC138: 0.9425248 | BD138: 0.940992 | BE138: 0.9394592 | BF138: 0.9379264 | BG138: 0.9363936 | BH138: 0.9348608 | BI138: 0.933328 | BJ138: 0.9317952 | BK138: 0.9302624 | BL138: 0.9287296 | BM138: 0.9271968 | BN138: 0.925664 | BO138: 0.9241312 | BP138: 0.9225984 | BQ138: 0.9210656 | BR138: 0.9195328 | BS138: 0.918
S139: =S138+0.01 -> 6.15 | T139: 0.9944 | V139: 0.992752 | W139: 0.991104 | X139: 0.989456 | Y139: 0.987808 | Z139: 0.98616 | AA139: 0.984512 | AB139: 0.982864 | AC139: 0.981216 | AD139: 0.979568 | AE139: 0.97792 | AF139: 0.976272 | AG139: 0.974624 | AH139: 0.9761536 | AI139: 0.9745008 | AJ139: 0.96968 | AK139: 0.968032 | AL139: 0.966384 | AM139: 0.964736 | AN139: 0.963088 | AO139: 0.96144 | AP139: 0.959792 | AQ139: 0.958144 | AR139: 0.956496 | AS139: 0.954848 | AT139: 0.9532 | AU139: 0.951672 | AV139: 0.950144 | AW139: 0.948616 | AX139: 0.947088 | AY139: 0.94556 | AZ139: 0.944032 | BA139: 0.942504 | BB139: 0.940976 | BC139: 0.939448 | BD139: 0.93792 | BE139: 0.936392 | BF139: 0.934864 | BG139: 0.933336 | BH139: 0.931808 | BI139: 0.93028 | BJ139: 0.928752 | BK139: 0.927224 | BL139: 0.925696 | BM139: 0.924168 | BN139: 0.92264 | BO139: 0.921112 | BP139: 0.919584 | BQ139: 0.918056 | BR139: 0.916528 | BS139: 0.915
S140: 6.16 | T140: 0.99116 | V140: 0.9895168 | W140: 0.9878736 | X140: 0.9862304 | Y140: 0.9845872 | Z140: 0.982944 | AA140: 0.9813008 | AB140: 0.9796576 | AC140: 0.9780144 | AD140: 0.9763712 | AE140: 0.974728 | AF140: 0.9730848 | AG140: 0.9714416 | AH140: 0.972976 | AI140: 0.971328 | AJ140: 0.966512 | AK140: 0.9648688 | AL140: 0.9632256 | AM140: 0.9615824 | AN140: 0.9599392 | AO140: 0.958296 | AP140: 0.9566528 | AQ140: 0.9550096 | AR140: 0.9533664 | AS140: 0.9517232 | AT140: 0.95008 | AU140: 0.9485568 | AV140: 0.9470336 | AW140: 0.9455104 | AX140: 0.9439872 | AY140: 0.942464 | AZ140: 0.9409408 | BA140: 0.9394176 | BB140: 0.9378944 | BC140: 0.9363712 | BD140: 0.934848 | BE140: 0.9333248 | BF140: 0.9318016 | BG140: 0.9302784 | BH140: 0.9287552 | BI140: 0.927232 | BJ140: 0.9257088 | BK140: 0.9241856 | BL140: 0.9226624 | BM140: 0.9211392 | BN140: 0.919616 | BO140: 0.9180928 | BP140: 0.9165696 | BQ140: 0.9150464 | BR140: 0.9135232 | BS140: 0.912
S141: 6.17 | T141: 0.98792 | V141: 0.9862816 | W141: 0.9846432 | X141: 0.9830048 | Y141: 0.9813664 | Z141: 0.979728 | AA141: 0.9780896 | AB141: 0.9764512 | AC141: 0.9748128 | AD141: 0.9731744 | AE141: 0.971536 | AF141: 0.9698976 | AG141: 0.9682592 | AH141: 0.9697984 | AI141: 0.9681552 | AJ141: 0.963344 | AK141: 0.9617056 | AL141: 0.9600672 | AM141: 0.9584288 | AN141: 0.9567904 | AO141: 0.955152 | AP141: 0.9535136 | AQ141: 0.9518752 | AR141: 0.9502368 | AS141: 0.9485984 | AT141: 0.94696 | AU141: 0.9454416 | AV141: 0.9439232 | AW141: 0.9424048 | AX141: 0.9408864 | AY141: 0.939368 | AZ141: 0.9378496 | BA141: 0.9363312 | BB141: 0.9348128 | BC141: 0.9332944 | BD141: 0.931776 | BE141: 0.9302576 | BF141: 0.9287392 | BG141: 0.9272208 | BH141: 0.9257024 | BI141: 0.924184 | BJ141: 0.9226656 | BK141: 0.9211472 | BL141: 0.9196288 | BM141: 0.9181104 | BN141: 0.916592 | BO141: 0.9150736 | BP141: 0.9135552 | BQ141: 0.9120368 | BR141: 0.9105184 | BS141: 0.909
S142: 6.18 | T142: 0.98468 | V142: 0.9830464 | W142: 0.9814128 | X142: 0.9797792 | Y142: 0.9781456 | Z142: 0.976512 | AA142: 0.9748784 | AB142: 0.9732448 | AC142: 0.9716112 | AD142: 0.9699776 | AE142: 0.968344 | AF142: 0.9667104 | AG142: 0.9650768 | AH142: 0.9666208 | AI142: 0.9649824 | AJ142: 0.960176 | AK142: 0.9585424 | AL142: 0.9569088 | AM142: 0.9552752 | AN142: 0.9536416 | AO142: 0.952008 | AP142: 0.9503744 | AQ142: 0.9487408 | AR142: 0.9471072 | AS142: 0.9454736 | AT142: 0.94384 | AU142: 0.9423264 | AV142: 0.9408128 | AW142: 0.9392992 | AX142: 0.9377856 | AY142: 0.936272 | AZ142: 0.9347584 | BA142: 0.9332448 | BB142: 0.9317312 | BC142: 0.9302176 | BD142: 0.928704 | BE142: 0.9271904 | BF142: 0.9256768 | BG142: 0.9241632 | BH142: 0.9226496 | BI142: 0.921136 | BJ142: 0.9196224 | BK142: 0.9181088 | BL142: 0.9165952 | BM142: 0.9150816 | BN142: 0.913568 | BO142: 0.9120544 | BP142: 0.9105408 | BQ142: 0.9090272 | BR142: 0.9075136 | BS142: 0.906
S143: 6.19 | T143: 0.98144 | V143: 0.9798112 | W143: 0.9781824 | X143: 0.9765536 | Y143: 0.9749248 | Z143: 0.973296 | AA143: 0.9716672 | AB143: 0.9700384 | AC143: 0.9684096 | AD143: 0.9667808 | AE143: 0.965152 | AF143: 0.9635232 | AG143: 0.9618944 | AH143: 0.9634432 | AI143: 0.9618096 | AJ143: 0.957008 | AK143: 0.9553792 | AL143: 0.9537504 | AM143: 0.9521216 | AN143: 0.9504928 | AO143: 0.948864 | AP143: 0.9472352 | AQ143: 0.9456064 | AR143: 0.9439776 | AS143: 0.9423488 | AT143: 0.94072 | AU143: 0.9392112 | AV143: 0.9377024 | AW143: 0.9361936 | AX143: 0.9346848 | AY143: 0.933176 | AZ143: 0.9316672 | BA143: 0.9301584 | BB143: 0.9286496 | BC143: 0.9271408 | BD143: 0.925632 | BE143: 0.9241232 | BF143: 0.9226144 | BG143: 0.9211056 | BH143: 0.9195968 | BI143: 0.918088 | BJ143: 0.9165792 | BK143: 0.9150704 | BL143: 0.9135616 | BM143: 0.9120528 | BN143: 0.910544 | BO143: 0.9090352 | BP143: 0.9075264 | BQ143: 0.9060176 | BR143: 0.9045088 | BS143: 0.903
S144: 6.2 | T144: 0.9782 | V144: 0.976576 | W144: 0.974952 | X144: 0.973328 | Y144: 0.971704 | Z144: 0.97008 | AA144: 0.968456 | AB144: 0.966832 | AC144: 0.965208 | AD144: 0.963584 | AE144: 0.96196 | AF144: 0.960336 | AG144: 0.958712 | AH144: 0.9602656 | AI144: 0.9586368 | AJ144: 0.95384 | AK144: 0.952216 | AL144: 0.950592 | AM144: 0.948968 | AN144: 0.947344 | AO144: 0.94572 | AP144: 0.944096 | AQ144: 0.942472 | AR144: 0.940848 | AS144: 0.939224 | AT144: 0.9376 | AU144: 0.936096 | AV144: 0.934592 | AW144: 0.933088 | AX144: 0.931584 | AY144: 0.93008 | AZ144: 0.928576 | BA144: 0.927072 | BB144: 0.925568 | BC144: 0.924064 | BD144: 0.92256 | BE144: 0.921056 | BF144: 0.919552 | BG144: 0.918048 | BH144: 0.916544 | BI144: 0.91504 | BJ144: 0.913536 | BK144: 0.912032 | BL144: 0.910528 | BM144: 0.909024 | BN144: 0.90752 | BO144: 0.906016 | BP144: 0.904512 | BQ144: 0.903008 | BR144: 0.901504 | BS144: 0.9
S145: 6.21 | T145: 0.97496 | V145: 0.9733408 | W145: 0.9717216 | X145: 0.9701024 | Y145: 0.9684832 | Z145: 0.966864 | AA145: 0.9652448 | AB145: 0.9636256 | AC145: 0.9620064 | AD145: 0.9603872 | AE145: 0.958768 | AF145: 0.9571488 | AG145: 0.9555296 | AH145: 0.957088 | AI145: 0.955464 | AJ145: 0.950672 | AK145: 0.9490528 | AL145: 0.9474336 | AM145: 0.9458144 | AN145: 0.9441952 | AO145: 0.942576 | AP145: 0.9409568 | AQ145: 0.9393376 | AR145: 0.9377184 | AS145: 0.9360992 | AT145: 0.93448 | AU145: 0.9329808 | AV145: 0.9314816 | AW145: 0.9299824 | AX145: 0.9284832 | AY145: 0.926984 | AZ145: 0.9254848 | BA145: 0.9239856 | BB145: 0.9224864 | BC145: 0.9209872 | BD145: 0.919488 | BE145: 0.9179888 | BF145: 0.9164896 | BG145: 0.9149904 | BH145: 0.9134912 | BI145: 0.911992 | BJ145: 0.9104928 | BK145: 0.9089936 | BL145: 0.9074944 | BM145: 0.9059952 | BN145: 0.904496 | BO145: 0.9029968 | BP145: 0.9014976 | BQ145: 0.8999984 | BR145: 0.8984992 | BS145: 0.897
S146: 6.22 | T146: 0.97172 | V146: 0.9701056 | W146: 0.9684912 | X146: 0.9668768 | Y146: 0.9652624 | Z146: 0.963648 | AA146: 0.9620336 | AB146: 0.9604192 | AC146: 0.9588048 | AD146: 0.9571904 | AE146: 0.955576 | AF146: 0.9539616 | AG146: 0.9523472 | AH146: 0.9539104 | AI146: 0.9522912 | AJ146: 0.947504 | AK146: 0.9458896 | AL146: 0.9442752 | AM146: 0.9426608 | AN146: 0.9410464 | AO146: 0.939432 | AP146: 0.9378176 | AQ146: 0.9362032 | AR146: 0.9345888 | AS146: 0.9329744 | AT146: 0.93136 | AU146: 0.9298656 | AV146: 0.9283712 | AW146: 0.9268768 | AX146: 0.9253824 | AY146: 0.923888 | AZ146: 0.9223936 | BA146: 0.9208992 | BB146: 0.9194048 | BC146: 0.9179104 | BD146: 0.916416 | BE146: 0.9149216 | BF146: 0.9134272 | BG146: 0.9119328 | BH146: 0.9104384 | BI146: 0.908944 | BJ146: 0.9074496 | BK146: 0.9059552 | BL146: 0.9044608 | BM146: 0.9029664 | BN146: 0.901472 | BO146: 0.8999776 | BP146: 0.8984832 | BQ146: 0.8969888 | BR146: 0.8954944 | BS146: 0.894
S147: =S146+0.01 -> 6.23 | T147: 0.96848 | V147: 0.9668704 | W147: 0.9652608 | X147: 0.9636512 | Y147: 0.9620416 | Z147: 0.960432 | AA147: 0.9588224 | AB147: 0.9572128 | AC147: 0.9556032 | AD147: 0.9539936 | AE147: 0.952384 | AF147: 0.9507744 | AG147: 0.9491648 | AH147: 0.9507328 | AI147: 0.9491184 | AJ147: 0.944336 | AK147: 0.9427264 | AL147: 0.9411168 | AM147: 0.9395072 | AN147: 0.9378976 | AO147: 0.936288 | AP147: 0.9346784 | AQ147: 0.9330688 | AR147: 0.9314592 | AS147: 0.9298496 | AT147: 0.92824 | AU147: 0.9267504 | AV147: 0.9252608 | AW147: 0.9237712 | AX147: 0.9222816 | AY147: 0.920792 | AZ147: 0.9193024 | BA147: 0.9178128 | BB147: 0.9163232 | BC147: 0.9148336 | BD147: 0.913344 | BE147: 0.9118544 | BF147: 0.9103648 | BG147: 0.9088752 | BH147: 0.9073856 | BI147: 0.905896 | BJ147: 0.9044064 | BK147: 0.9029168 | BL147: 0.9014272 | BM147: 0.8999376 | BN147: 0.898448 | BO147: 0.8969584 | BP147: 0.8954688 | BQ147: 0.8939792 | BR147: 0.8924896 | BS147: 0.891
S148: =S147+0.01 -> 6.24 | T148: 0.96524 | V148: 0.9636352 | W148: 0.9620304 | X148: 0.9604256 | Y148: 0.9588208 | Z148: 0.957216 | AA148: 0.9556112 | AB148: 0.9540064 | AC148: 0.9524016 | AD148: 0.9507968 | AE148: 0.949192 | AF148: 0.9475872 | AG148: 0.9459824 | AH148: 0.9475552 | AI148: 0.9459456 | AJ148: 0.941168 | AK148: 0.9395632 | AL148: 0.9379584 | AM148: 0.9363536 | AN148: 0.9347488 | AO148: 0.933144 | AP148: 0.9315392 | AQ148: 0.9299344 | AR148: 0.9283296 | AS148: 0.9267248 | AT148: 0.92512 | AU148: 0.9236352 | AV148: 0.9221504 | AW148: 0.9206656 | AX148: 0.9191808 | AY148: 0.917696 | AZ148: 0.9162112 | BA148: 0.9147264 | BB148: 0.9132416 | BC148: 0.9117568 | BD148: 0.910272 | BE148: 0.9087872 | BF148: 0.9073024 | BG148: 0.9058176 | BH148: 0.9043328 | BI148: 0.902848 | BJ148: 0.9013632 | BK148: 0.8998784 | BL148: 0.8983936 | BM148: 0.8969088 | BN148: 0.895424 | BO148: 0.8939392 | BP148: 0.8924544 | BQ148: 0.8909696 | BR148: 0.8894848 | BS148: 0.888
S149: 6.25 | T149: =V149+(0.04/25) -> 0.962 | V149: =W149+(0.04/25) -> 0.9604 | W149: 0.9588 | X149: 0.9572 | Y149: 0.9556 | Z149: 0.954 | AA149: 0.9524 | AB149: 0.9508 | AC149: 0.9492 | AD149: 0.9476 | AE149: 0.946 | AF149: 0.9444 | AG149: =AH150+(0.04/25) -> 0.9428 | AH149: 0.9443776 | AI149: 0.9427728 | AJ149: 0.938 | AK149: 0.9364 | AL149: =AM149+(0.04/25) -> 0.9348 | AM149: 0.9332 | AN149: 0.9316 | AO149: 0.93 | AP149: 0.9284 | AQ149: 0.9268 | AR149: 0.9252 | AS149: =AT149+(0.04/25) -> 0.9236 | AT149: 0.922 | AU149: =AT149-(0.037/25) -> 0.92052 | AV149: =AU149-(0.037/25) -> 0.91904 | AW149: 0.91756 | AX149: 0.91608 | AY149: 0.9146 | AZ149: 0.91312 | BA149: 0.91164 | BB149: 0.91016 | BC149: 0.90868 | BD149: 0.9072 | BE149: 0.90572 | BF149: 0.90424 | BG149: 0.90276 | BH149: 0.90128 | BI149: 0.8998 | BJ149: 0.89832 | BK149: 0.89684 | BL149: 0.89536 | BM149: 0.89388 | BN149: 0.8924 | BO149: 0.89092 | BP149: 0.88944 | BQ149: 0.88796 | BR149: 0.88648 | BS149: 0.885
AH150: 0.9412 | AI150: =AJ149+(0.04/25) -> 0.9396
